Workbook

Sheet Sheet1
A1: Approximating Polar Coordinate | Z1: =n+1 -> 4 | AC1: =n+1 -> 4
A2: Curves With Lagrange Interpolation
B4: This graphing utility produces the graph
B5: of any polar coordinate function
C6: r = f(Q)
B7: and its Lagrange Interpolating Polynomials
B8: on any interval from Q = a to Q = b.
A10: Enter the function in terms of Q: r = f(Q) = | F10: (sin(Q))^2+(cos(Q))^4
A13: Now enter the interval for Q (in radians):
B14: Starting angle a = | D14: -3
B15: Ending angle b = | D15: 3
A18: Select the degree n (1 to 6) for the interpolating polynomial: | I18: The graph of the polar function r = | N18: =F10 -> (sin(Q))^2+(cos(Q))^4
B19: 3 | D19: n = | E19: =B19 -> 3
I21: Now trace along the two curves:
A22: ="Enter the " & TEXT(n+1,"0")& " different interpolating points between "&TEXT(QMin,"##.#") & " and "& TEXT(QMax, "#.#") -> Enter the 4 different interpolating points between -3. and 3. | I22: Q = | J22: =Sheet1!D14+K22*Sheet2!B12 -> 0.5223880597 | K22: 118
A23: 1 | B23: -3 | C23: =IF(Z23=0,"That's outside the interval","") ->  | I23: r = | J23: =LOOKUP(J22,Sheet2!C3:C204,Sheet2!D3:D204) -> 0.8263972166 | Z23: =IF(OR(B23<QMin,B23>QMax),0,1) -> 1
A24: 2 | B24: 1 | C24: =IF(Z24=0,"That's outside the interval","") ->  | I24: r = | J24: =LOOKUP(J22,Sheet2!C3:C204,Sheet2!T3:T204) -> 0.868 | Z24: 1
A25: 3 | B25: 2 | C25: =IF(AND(A25<=n+1,Z25=0),"That's outside the interval",IF(A25>n+1,"","")) ->  | Z25: 1
A26: 4 | B26: -1 | C26: =IF(AND(A26<=n+1,Z26=0),"That's outside the interval",IF(A26>n+1,"","")) ->  | Z26: 1
A27: 5 | B27: 0 | C27: =IF(AND(A27<=n+1,Z27=0),"That's outside the interval",IF(A27>n+1,"","")) ->  | Z27: 1
A28: 6 | B28: 5 | C28: =IF(AND(A28<=n+1,Z28=0),"That's outside the interval",IF(A28>n+1,"","")) ->  | Z28: 0
A29: 7 | B29: -0.5 | C29: =IF(AND(A29<=n+1,Z29=0),"That's outside the interval",IF(A29>n+1,"","")) ->  | Z29: 1
Z30: 1
A31: Click each item below for suggestions and investigations
C32: Item 1
C33: Item 2
C34: Item 3
C35: Item 4
C36: Item 5
A40: To access/download all the DIGMath Apps for Calculus
A41: Click this link: | C41: DIGMath for Calculus
A43: Created by: Sheldon P. Gordon
A44: Farmingdale State College
A45: Development of this module was supported by the
A46: NSF's Division of Undergraduate Education
A47: under grants DUE-0310123 and DUE-0442160.

Sheet Sheet2
C1: Q | D1: r = f(Q) | E1: x | F1: y | H1: Tracing point | K1: =QMin -> -3 | L1: =r0 -> 0.9804817448 | N1: linear | O1: quad | P1: cubic | Q1: quartic | R1: quintic | S1: 6th | T1: interpol | U1: x | V1: y
K2: =K1+dQQ -> -1.5 | L2: =r00 -> 0.7932945474
C3: =Sheet1!D14 -> -3 | D3: =(SIN(Q))^2+(COS(Q))^4 -> 0.9804817448 | E3: =D3*COS($C3) -> -0.9706695704 | F3: =D3*SIN($C3) -> -0.1383655917 | H3: 0 | I3: 0 | K3: =K2+dQQ -> 0 | L3: =r000 -> 0.8568124958 | N3: =$L$1*(Q-$K$2)/($K$1-$K$2)+$L$2*(Q-$K$1)/($K$2-$K$1) -> 0.9804817448 | O3: =$L$1*(Q-$K$2)*(Q-$K$3)/($K$1-$K$2)/($K$1-$K$3)+$L$2*(Q-$K$1)*(Q-$K$3)/($K$2-$K$1)/($K$2-$K$3)+$L$3*(Q-$K$1)*(Q-$K$2)/($K$3-$K$1)/($K$3-$K$2) -> 0.9804817448 | P3: =$L$1*(Q-$K$2)*(Q-$K$3)*(Q-$K$4)/($K$1-$K$2)/($K$1-$K$3)/($K$1-$K$4)+$L$2*(Q-$K$1)*(Q-$K$3)*(Q-$K$4)/($K$2-$K$1)/($K$2-$K$3) /($K$2-$K$4)+$L$3*(Q-$K$1)*(Q-$K$2)*(Q-$K$4)/($K$3-$K$1)/($K$3-$K$2) /($K$3-$K$4)+$L$4*(Q-$K$1)*(Q-$K$2)*(Q-$K$3)/($K$4-$K$1)/($K$4-$K$2) /($K$4-$K$3) -> 0.9804817448 | Q3: =$L$1*(Q-$K$2)*(Q-$K$3)*(Q-$K$4)*(Q-$K$5)/($K$1-$K$2)/($K$1-$K$3)/($K$1-$K$4)/($K$1-$K$5) +$L$2*(Q-$K$1)*(Q-$K$3)*(Q-$K$4)*(Q-$K$5)/($K$2-$K$1)/($K$2-$K$3)/($K$2-$K$4)/($K$2-$K$5) +$L$3*(Q-$K$1)*(Q-$K$2)*(Q-$K$4)*(Q-$K$5)/($K$3-$K$1)/($K$3-$K$2)/($K$3-$K$4)/($K$3-$K$5) +$L$4*(Q-$K$1)*(Q-$K$2)*(Q-$K$3)*(Q-$K$5)/($K$4-$K$1)/($K$4-$K$2)/($K$4-$K$3)/($K$4-$K$5)+$L$5*(Q-$K$1)*(Q-$K$2)*(Q-$K$3)*(Q-$K$4)/($K$5-$K$1)/($K$5-$K$2)/($K$5-$K$3)/($K$5-$K$4) -> 0.9804817448 | R3: =$L$1*(Q-$K$2)*(Q-$K$3)*(Q-$K$4)*(Q-$K$5)*(Q-$K$6)/($K$1-$K$2)/($K$1-$K$3)/($K$1-$K$4)/($K$1-$K$5)/($K$1-$K$6)+$L$2*(Q-$K$1)*(Q-$K$3)*(Q-$K$4)*(Q-$K$5)*(Q-$K$6)/($K$2-$K$1)/($K$2-$K$3)/($K$2-$K$4)/($K$2-$K$5)/($K$2-$K$6)+$L$3*(Q-$K$1)*(Q-$K$2)*(Q-$K$4)*(Q-$K$5)*(Q-$K$6)/($K$3-$K$1)/($K$3-$K$2)/($K$3-$K$4)/($K$3-$K$5)/($K$3-$K$6)+$L$4*(Q-$K$1)*(Q-$K$2)*(Q-$K$3)*(Q-$K$5)*(Q-$K$6)/($K$4-$K$1)/($K$4-$K$2)/($K$4-$K$3)/($K$4-$K$5)/($K$4-$K$6)+$L$5*(Q-$K$1)*(Q-$K$2)*(Q-$K$3)*(Q-$K$4)*(Q-$K$6)/($K$5-$K$1)/($K$5-$K$2)/($K$5-$K$3)/($K$5-$K$4)/($K$5-$K$6)+$L$6*(Q-$K$1)*(Q-$K$2)*(Q-$K$3)*(Q-$K$4)*(Q-$K$5)/($K$6-$K$1)/($K$6-$K$2)/($K$6-$K$3)/($K$6-$K$4)/($K$6-$K$5) -> 0.9804817448 | S3: =$L$1*(Q-$K$2)*(Q-$K$3)*(Q-$K$4)*(Q-$K$5)*(Q-$K$6)*(Q-$K$7)/($K$1-$K$2)/($K$1-$K$3)/($K$1-$K$4)/($K$1-$K$5)/($K$1-$K$6) /($K$1-$K$7)+$L$2*(Q-$K$1)*(Q-$K$3)*(Q-$K$4)*(Q-$K$5)*(Q-$K$6)*(Q-$K$7)/($K$2-$K$1)/($K$2-$K$3)/($K$2-$K$4)/($K$2-$K$5)/($K$2-$K$6) /($K$2-$K$7)+$L$3*(Q-$K$1)*(Q-$K$2)*(Q-$K$4)*(Q-$K$5)*(Q-$K$6)*(Q-$K$7)/($K$3-$K$1)/($K$3-$K$2)/($K$3-$K$4)/($K$3-$K$5)/($K$3-$K$6) /($K$3-$K$7)+$L$4*(Q-$K$1)*(Q-$K$2)*(Q-$K$3)*(Q-$K$5)*(Q-$K$6)*(Q-$K$7)/($K$4-$K$1)/($K$4-$K$2)/($K$4-$K$3)/($K$4-$K$5)/($K$4-$K$6) /($K$4-$K$7)+$L$5*(Q-$K$1)*(Q-$K$2)*(Q-$K$3)*(Q-$K$4)*(Q-$K$6)*(Q-$K$7)/($K$5-$K$1)/($K$5-$K$2)/($K$5-$K$3)/($K$5-$K$4)/($K$5-$K$6) /($K$5-$K$7)+$L$6*(Q-$K$1)*(Q-$K$2)*(Q-$K$3)*(Q-$K$4)*(Q-$K$5)*(Q-$K$7)/($K$6-$K$1)/($K$6-$K$2)/($K$6-$K$3)/($K$6-$K$4)/($K$6-$K$5) /($K$6-$K$7)+$L$7*(Q-$K$1)*(Q-$K$2)*(Q-$K$3)*(Q-$K$4)*(Q-$K$5)*(Q-$K$6)/($K$7-$K$1)/($K$7-$K$2)/($K$7-$K$3)/($K$7-$K$4)/($K$7-$K$5) /($K$7-$K$6) -> 0.9804817448 | T3: =IF(n=1,N3,IF(n=2,O3,IF(n=3,P3,IF(n=4,Q3,IF(n=5,R3,S3))))) -> 0.9804817448 | U3: =T3*COS($C3) -> -0.9706695704 | V3: =T3*SIN($C3) -> -0.1383655917
C4: =C3+Sheet2!B$12 -> -2.970149254 | D4: 0.9717411725 | E4: =D4*COS(C4) -> -0.9574950024 | F4: =D4*SIN(C4) -> -0.1657836746 | H4: =LOOKUP(Sheet1!$J$22,Sheet2!C3:C204,E3:E204) -> 0.7281682505 | I4: =LOOKUP(Sheet1!J22,Sheet2!C3:C204,F3:F204) -> 0.390772771 | K4: =K3+dQQ -> 1.5 | L4: =r0000 -> 0.7932945474 | N4: 0.9767566265 | O4: 0.9743116913 | P4: 0.9718802486 | Q4: 0.9681636767 | R4: 0.9615856631 | S4: 0.9505785728 | T4: 0.9718802486 | U4: =T4*COS($C4) -> -0.9576320395 | V4: =T4*SIN($C4) -> -0.1658074017
C5: =C4+Sheet2!B$12 -> -2.940298507 | D5: 0.9616229921 | E5: -0.9422065257 | F5: -0.1922645099 | K5: =K4+dQQ -> 3 | L5: =r00000 -> 1 | N5: 0.9730315081 | O5: 0.9682409244 | P5: 0.9635246587 | Q5: 0.9563637703 | R5: 0.9437529824 | S5: 0.9227354821 | T5: 0.9635246587 | U5: -0.9440697951 | V5: -0.1926447244
C6: =C5+Sheet2!B$12 -> -2.910447761 | D6: 0.950271288 | E6: -0.9249985828 | F6: -0.2176996612 | K6: =K5+dQQ -> 4.5 | L6: =r000000 -> 0.9260102577 | N6: 0.9693063898 | O6: 0.9622694443 | P6: 0.9554119981 | Q6: 0.9450700689 | R6: 0.926948784 | S6: 0.8968685008 | T6: 0.9554119981 | U6: -0.9300025744 | V6: -0.2188773574
C7: =C6+Sheet2!B$12 -> -2.880597015 | D7: 0.93784771 | E7: -0.9060861279 | F7: -0.2420046611 | H7: Start line: | K7: =K6+dQQ -> 6 | L7: =r0000000 -> 0.8229816454 | N7: 0.9655812714 | O7: 0.9563972508 | P7: 0.9475392897 | Q7: 0.9342707375 | R7: 0.9111388005 | S7: 0.8728957982 | T7: 0.9475392897 | U7: -0.9154494881 | V7: -0.2445055015
C8: =C7+Sheet2!B$12 -> -2.850746269 | D8: 0.9245291717 | E8: -0.8857003394 | F8: -0.2651209121 | H8: 0 | I8: 0 | N8: 0.9618561531 | O8: 0.9506243441 | P8: 0.9399035566 | Q8: 0.9239540626 | R8: 0.8962894102 | S8: 0.850737653 | T8: 0.9399035566 | U8: -0.9004290234 | V8: -0.2695297194
C9: =C8+Sheet2!B$12 -> -2.820895522 | D9: 0.9105053309 | E9: -0.86408403 | F9: -0.28701698 | H9: =1.2*D3*COS(C3) -> -1.164803485 | I9: =1.2*D3*SIN(C3) -> -0.1660387101 | N9: 0.9581310347 | O9: 0.9449507241 | P9: 0.9325018217 | Q9: 0.9141084523 | R9: 0.8823676324 | S9: 0.8303164217 | T9: 0.9325018217 | U9: -0.8849590493 | V9: -0.2939508948
C10: =C9+Sheet2!B$12 -> -2.791044776 | D10: 0.8959758892 | E10: -0.841486852 | F10: -0.3076892458 | N10: 0.9544059163 | O10: 0.9393763908 | P10: 0.9253311079 | Q10: 0.9047224361 | R10: 0.8693411212 | S10: 0.8115565068 | T10: 0.9253311079 | U10: -0.8690568245 | V10: -0.3177701924
C11: =C10+Sheet2!B$12 -> -2.76119403 | D11: 0.8811477478 | E11: -0.8181604027 | F11: -0.3271619004 | N11: 0.950680798 | O11: 0.9339013442 | P11: 0.9183884382 | Q11: 0.8957846652 | R11: 0.8571781606 | S11: 0.7943843254 | T11: 0.9183884382 | U11: -0.8527390057 | V11: -0.3409890197
A12: delta Q = | B12: =(Sheet1!D15-Sheet1!D14)/201 -> 0.02985074627 | C12: =C11+Sheet2!B$12 -> -2.731343284 | D12: 0.8662320617 | E12: -0.7943533319 | F12: -0.3454862786 | H12: End line | N12: 0.9469556796 | O12: 0.9285255843 | P12: 0.9116708355 | Q12: 0.8872839123 | R12: 0.8458476593 | S12: 0.7787282787 | T12: 0.9116708355 | U12: -0.8360216596 | V12: -0.3636089891
C13: =C12+Sheet2!B$12 -> -2.701492537 | D13: 0.8514412322 | E13: -0.7703065587 | F13: -0.362739545 | H13: 0 | I13: 0 | N13: 0.9432305613 | O13: 0.9232491111 | P13: 0.9051753228 | Q13: 0.8792090716 | R13: 0.8353191446 | S13: 0.7645187207 | T13: 0.9051753228 | U13: -0.8189202749 | V13: -0.385631882
A14: dQQ = | B14: =(Sheet1!D15-Sheet1!D14)/(n+1) -> 1.5 | C14: =C13+Sheet2!B$12 -> -2.671641791 | D14: 0.8369858829 | E14: -0.746248696 | F14: -0.3790227591 | H14: =1.2*D204*COS(C204) -> -1.164803485 | I14: =1.2*D204*SIN(C204)+1 -> 1.16603871 | N14: 0.9395054429 | O14: 0.9180719246 | P14: 0.898898923 | Q14: 0.8715491589 | R14: 0.8255627578 | S14: 0.7516879275 | T14: 0.898898923 | U14: -0.8014497769 | V14: -0.4070596135
C15: =C14+Sheet2!B$12 -> -2.641791045 | D15: 0.8230718601 | E15: -0.7223917829 | F15: -0.3944583614 | N15: 0.9357803246 | O15: 0.9129940248 | P15: 0.8928386591 | Q15: 0.8642933116 | R15: 0.8165492484 | S15: 0.7401700669 | T15: 0.8928386591 | U15: -0.7836245437 | V15: -0.4278941993
A16: Q00 = | B16: =Sheet1!B23 -> -3 | C16: =C15+Sheet2!B$12 -> -2.611940299 | D16: 0.8098973014 | E16: -0.6989274121 | F16: -0.409187135 | N16: 0.9320552062 | O16: 0.9080154118 | P16: 0.8869915541 | Q16: 0.8574307885 | R16: 0.8082499688 | S16: 0.7299011687 | T16: 0.8869915541 | U16: -0.7654584234 | V16: -0.4481377233
A17: Q01 = | B17: =Sheet1!B24 -> 1 | C17: =C16+Sheet2!B$12 -> -2.582089552 | D17: 0.7976498143 | E17: -0.6760233348 | F17: -0.4233647093 | H17: Approx Point | N17: 0.9283300878 | O17: 0.9031360854 | P17: 0.8813546308 | Q17: 0.8509509701 | R17: 0.8006368689 | S17: 0.7208190938 | T17: 0.8813546308 | U17: -0.7469647531 | V17: -0.4677923073
A18: Q02 = | B18: =Sheet1!B25 -> 2 | C18: =C17+Sheet2!B$12 -> -2.552238806 | D18: 0.7865038049 | E18: -0.6538206127 | F18: -0.437157685 | H18: 0 | I18: 0 | N18: 0.9246049695 | O18: 0.8983560458 | P18: 0.8759249122 | Q18: 0.8448433585 | R18: 0.7936824908 | S18: 0.7128635051 | T18: 0.8759249122 | U18: -0.7281563792 | V18: -0.4868600818
A19: Q03 = | B19: =Sheet1!B26 -> -1 | C19: =C18+Sheet2!B$12 -> -2.52238806 | D19: 0.7766179939 | E19: -0.6324313752 | F19: -0.4507394636 | H19: =Sheet1!J24*COS(Sheet1!J22) -> 0.7525881564 | I19: =Sheet1!J24*SIN(Sheet1!J22) -> 0.4332929288 | N19: 0.9208798511 | O19: 0.8936752928 | P19: 0.8706994214 | Q19: 0.8390975771 | R19: 0.7873599634 | S19: 0.7059758376 | T19: 0.8706994214 | U19: -0.7090456786 | V19: -0.5053431587
A20: Q04 = | B20: =Sheet1!B27 -> 0 | C20: =C19+Sheet2!B$12 -> -2.492537313 | D20: 0.7681331566 | E20: -0.6119372263 | F20: -0.4642858789 | N20: 0.9171547328 | O20: 0.8890938266 | P20: 0.8656751811 | Q20: 0.833703371 | R20: 0.781642997 | S20: 0.7000992693 | T20: 0.8656751811 | U20: -0.6896445814 | V20: -0.5232436054
A21: Q05 = | B21: =Sheet1!B28 -> 5 | C21: =C20+Sheet2!B$12 -> -2.462686567 | D21: 0.7611701184 | E21: -0.5923883314 | F21: -0.477970725 | N21: 0.9134296144 | O21: 0.8846116471 | P21: 0.8608492145 | Q21: 0.828650607 | R21: 0.7765058779 | S21: 0.6951786918 | T21: 0.8608492145 | U21: -0.6699645945 | V21: -0.540563421
A22: Q06 = | B22: =Sheet1!B29 -> -0.5 | C22: =C21+Sheet2!B$12 -> -2.432835821 | D22: 0.7558280339 | E22: -0.5738031992 | F22: -0.4919612846 | N22: 0.9097044961 | O22: 0.8802287543 | P22: 0.8562185444 | Q22: 0.8239292732 | R22: 0.7719234629 | S22: 0.6911606816 | T22: 0.8562185444 | U22: -0.6500168264 | V22: -0.5573045138
C23: =C22+Sheet2!B$12 -> -2.402985075 | D23: 0.7521829752 | E23: -0.556169158 | F23: -0.506413957 | N23: 0.9059793777 | O23: 0.8759451482 | P23: 0.8517801937 | Q23: 0.8195294793 | R23: 0.7678711744 | S23: 0.687993471 | T23: 0.8517801937 | U23: -0.6298120122 | V23: -0.5734686807
C24: =C23+Sheet2!B$12 -> -2.373134328 | D24: 0.7502868483 | E24: -0.5394435117 | F24: -0.5214700878 | N24: 0.9022542593 | O24: 0.8717608288 | P24: 0.8475311856 | Q24: 0.8154414567 | R24: 0.7643249944 | S24: 0.6856269201 | T24: 0.8475311856 | U24: -0.60936054 | V24: -0.5890575887
C25: =C24+Sheet2!B$12 -> -2.343283582 | D25: 0.7501666545 | E25: -0.5235553442 | F25: -0.5372520926 | N25: 0.898529141 | O25: 0.8676757961 | P25: 0.8434685428 | Q25: 0.8116555582 | R25: 0.7612614595 | S25: 0.6840124884 | T25: 0.8434685428 | U25: -0.5886724778 | V25: -0.6040727576
C26: =C25+Sheet2!B$12 -> -2.313432836 | D26: 0.7518241053 | E26: -0.508407928 | F26: -0.5538599679 | N26: 0.8948040226 | O26: 0.8636900502 | P26: 0.8395892883 | Q26: 0.8081622583 | R26: 0.7586576555 | S26: 0.6831032063 | T26: 0.8395892883 | U26: -0.5677576011 | V26: -0.6185155451
C27: =C26+Sheet2!B$12 -> -2.28358209 | D27: 0.7552355983 | E27: -0.4938816788 | F27: -0.5713682668 | N27: 0.8910789043 | O27: 0.8598035909 | P27: 0.8358904452 | Q27: 0.8049521528 | R27: 0.7564912118 | S27: 0.682853648 | T27: 0.8358904452 | U27: -0.5466254203 | V27: -0.6323871332
C28: =C27+Sheet2!B$12 -> -2.253731343 | D28: 0.7603525534 | E28: -0.4798375877 | F28: -0.5898236134 | N28: 0.8873537859 | O28: 0.8560164184 | P28: 0.8323690363 | Q28: 0.8020159593 | R28: 0.7547402963 | S28: 0.6832199031 | T28: 0.8323690363 | U28: -0.5252852096 | V28: -0.6456885171
C29: =C28+Sheet2!B$12 -> -2.223880597 | D29: 0.7671021045 | E29: -0.466121049 | F29: -0.609242814 | N29: 0.8836286676 | O29: 0.8523285325 | P29: 0.8290220846 | Q29: 0.7993445168 | R29: 0.7533836098 | S29: 0.6841595498 | T29: 0.8290220846 | U29: -0.5037460351 | V29: -0.6584204954
C30: =C29+Sheet2!B$12 -> -2.194029851 | D30: 0.7753881369 | E30: -0.4525659972 | F30: -0.6296116113 | N30: 0.8799035492 | O30: 0.8487399334 | P30: 0.825846613 | Q30: 0.796928786 | R30: 0.7524003809 | S30: 0.6856316273 | T30: 0.825846613 | U30: -0.4820167838 | V30: -0.6705836624
C31: =C30+Sheet2!B$12 -> -2.164179104 | D31: 0.7850926565 | E31: -0.4389992573 | F31: -0.6508841152 | N31: 0.8761784308 | O31: 0.845250621 | P31: 0.8228396445 | Q31: 0.794759849 | R31: 0.7517703602 | S31: 0.687596609 | T31: 0.8228396445 | U31: -0.4601061923 | V31: -0.6821784022
C32: =C31+Sheet2!B$12 -> -2.134328358 | D32: 0.7960774694 | E32: -0.4252450086 | F32: -0.6729829269 | N32: 0.8724533125 | O32: 0.8418605952 | P32: 0.8199982021 | Q32: 0.7928289095 | R32: 0.7514738153 | S32: 0.6900163758 | T32: 0.8199982021 | U32: -0.4380228758 | V32: -0.6932048843
A33: =n+1 -> 4 | C33: =C32+Sheet2!B$12 -> -2.104477612 | D33: 0.8081861503 | E33: -0.4111292629 | F33: -0.6957999589 | N33: 0.8687281941 | O33: 0.8385698562 | P33: 0.8173193087 | Q33: 0.7911272928 | R33: 0.7514915252 | S33: 0.6928541894 | T33: 0.8173193087 | U33: -0.4157753567 | V33: -0.7036630622
C34: =C33+Sheet2!B$12 -> -2.074626866 | D34: 0.82124627 | E34: -0.3964842531 | F34: -0.7191979374 | N34: 0.8650030758 | O34: 0.8353784039 | P34: 0.8147999872 | Q34: 0.7896464456 | R34: 0.7518047752 | S34: 0.696074666 | T34: 0.8147999872 | U34: -0.3933720933 | V34: -0.7135526718
C35: =C34+Sheet2!B$12 -> -2.044776119 | D35: 0.8350718505 | E35: -0.381152635 | F35: -0.74301256 | N35: 0.8612779574 | O35: 0.8322862384 | P35: 0.8124372606 | Q35: 0.7883779364 | R35: 0.752395351 | S35: 0.69964375 | T35: 0.8124372606 | U35: -0.3708215077 | V35: -0.7228732336
C36: =C35+Sheet2!B$12 -> -2.014925373 | D36: 0.8494660134 | E36: -0.3649914085 | F36: -0.7670552651 | N36: 0.8575528391 | O36: 0.8292933595 | P36: 0.8102281519 | Q36: 0.7873134551 | R36: 0.753245534 | S36: 0.7035286887 | T36: 0.8102281519 | U36: -0.3481320143 | V36: -0.7316240556
C37: =C36+Sheet2!B$12 -> -1.985074627 | D37: 0.864223784 | E37: -0.3478754692 | F37: -0.791116557 | N37: 0.8538277207 | O37: 0.8263997673 | P37: 0.808169684 | Q37: 0.7864448131 | R37: 0.7543380952 | S37: 0.7076980058 | T37: 0.808169684 | U37: -0.3253120467 | V37: -0.7398042379
C38: =C37+Sheet2!B$12 -> -1.955223881 | D38: 0.8791350094 | E38: -0.3297007129 | F38: -0.8149698183 | N38: 0.8501026023 | O38: 0.8236054619 | P38: 0.8062588798 | Q38: 0.7857639434 | R38: 0.7556562906 | S38: 0.7121214766 | T38: 0.8062588798 | U38: -0.3023700849 | V38: -0.7474126792
C39: =C38+Sheet2!B$12 -> -1.925373134 | D39: 0.8939873517 | E39: -0.3103866237 | F39: -0.8383755297 | N39: 0.846377484 | O39: 0.8209104431 | P39: 0.8044927624 | Q39: 0.7852629007 | R39: 0.7571838551 | S39: 0.7167701024 | T39: 0.8044927624 | U39: -0.2793146814 | V39: -0.7544480853
C40: =C39+Sheet2!B$12 -> -1.895522388 | D40: 0.9085693114 | E40: -0.2898782898 | F40: -0.8610858092 | N40: 0.8426523656 | O40: 0.8183147111 | P40: 0.8028683546 | Q40: 0.7849338609 | R40: 0.7589049975 | S40: 0.7216160854 | T40: 0.8028683546 | U40: -0.2561544867 | V40: -0.7609089786
C41: =C40+Sheet2!B$12 -> -1.865671642 | D41: 0.9226732394 | E41: -0.2681478034 | F41: -0.882849173 | N41: 0.8389272473 | O41: 0.8158182657 | P41: 0.8013826794 | Q41: 0.7847691218 | R41: 0.7608043951 | S41: 0.7266328042 | T41: 0.8013826794 | U41: -0.2328982742 | V41: -0.7667937093
C42: =C41+Sheet2!B$12 -> -1.835820896 | D42: 0.9360982936 | E42: -0.2451950148 | F42: -0.9034154194 | N42: 0.8352021289 | O42: 0.8134211071 | P42: 0.8000327598 | Q42: 0.7847611027 | R42: 0.7628671883 | S42: 0.7317947888 | T42: 0.8000327598 | U42: -0.2095549642 | V42: -0.7721004686
C43: =C42+Sheet2!B$12 -> -1.805970149 | D43: 0.9486532994 | E43: -0.2210476281 | F43: -0.9225405296 | N43: 0.8314770106 | O43: 0.8111232352 | P43: 0.7988156186 | Q43: 0.7849023441 | R43: 0.7650789751 | S43: 0.7370776966 | T43: 0.7988156186 | U43: -0.1861336464 | V43: -0.7768273027
C44: =C43+Sheet2!B$12 -> -1.776119403 | D44: 0.9601594718 | E44: -0.1957606358 | F44: -0.9399914812 | N44: 0.8277518922 | O44: 0.80892465 | P44: 0.797728279 | Q44: 0.7851855086 | R44: 0.7674258059 | S44: 0.7424582879 | T44: 0.797728279 | U44: -0.1626436021 | V44: -0.7809721287
C45: =C44+Sheet2!B$12 -> -1.746268657 | D45: 0.9704529612 | E45: -0.1694151119 | F45: -0.9555508724 | N45: 0.8240267738 | O45: 0.8068253515 | P45: 0.7967677637 | Q45: 0.7856033799 | R45: 0.7698941781 | S45: 0.7479144021 | T45: 0.7967677637 | U45: -0.1390943252 | V45: -0.7845327514
C46: =C45+Sheet2!B$12 -> -1.71641791 | D46: 0.9793871869 | E46: -0.1421163894 | F46: -0.9690212555 | N46: 0.8203016555 | O46: 0.8048253397 | P46: 0.7959310958 | Q46: 0.7861488635 | R46: 0.7724710305 | S46: 0.7534249339 | T46: 0.7959310958 | U46: -0.1154955416 | V46: -0.787506882
C47: =C46+Sheet2!B$12 -> -1.686567164 | D47: 0.9868349241 | E47: -0.1139916706 | F47: -0.9802290888 | N47: 0.8165765371 | O47: 0.8029246146 | P47: 0.7952152983 | Q47: 0.7868149864 | R47: 0.7751437382 | S47: 0.7589698098 | T47: 0.7952152983 | U47: -0.09185722767 | V47: -0.7898921574
C48: =C47+Sheet2!B$12 -> -1.656716418 | D48: 0.9926901162 | E48: -0.08518712261 | F48: -0.9890282205 | N48: 0.8128514188 | O48: 0.8011231763 | P48: 0.794617394 | Q48: 0.7875948969 | R48: 0.7779001071 | S48: 0.7645299647 | T48: 0.794617394 | U48: -0.06818962763 | V48: -0.791686161
C49: =C48+Sheet2!B$12 -> -1.626865672 | D49: 0.9968693842 | E49: -0.05586453165 | F49: -0.99530283 | N49: 0.8091263004 | O49: 0.7994210246 | P49: 0.7941344059 | Q49: 0.7884818654 | R49: 0.7807283685 | S49: 0.770087319 | T49: 0.7941344059 | U49: -0.04450326928 | V49: -0.7928864443
C50: =C49+Sheet2!B$12 -> -1.597014925 | D50: 0.9993132149 | E50: -0.02619759036 | F50: -0.9989697632 | N50: 0.8054011821 | O50: 0.7978181596 | P50: 0.7937633569 | Q50: 0.7894692833 | R50: 0.7836171737 | S50: 0.7756247556 | T50: 0.7937633569 | U50: -0.02080897856 | V50: -0.7934905502
C51: =C50+Sheet2!B$12 -> -1.567164179 | D51: 0.9999868077 | E51: 0.003632091788 | F51: -0.9999802116 | N51: 0.8016760637 | O51: 0.7963145814 | P51: 0.7935012701 | Q51: 0.7905506638 | R51: 0.7865555887 | S51: 0.781126097 | T51: 0.7935012701 | U51: 0.002882107469 | V51: -0.793496036
C52: =C51+Sheet2!B$12 -> -1.537313433 | D52: 0.9988805706 | E52: 0.03343916328 | F52: -0.9983206984 | N52: 0.7979509453 | O52: 0.7949102899 | P52: 0.7933451684 | Q52: 0.7917196416 | R52: 0.7895330889 | S52: 0.7865760832 | T52: 0.7933451684 | U52: 0.02655852902 | V52: -0.7929004987
C53: =C52+Sheet2!B$12 -> -1.507462687 | D53: 0.9960102566 | E53: 0.06303879252 | F53: -0.994013351 | N53: 0.794225827 | O53: 0.793605285 | P53: 0.7932920747 | Q53: 0.7929699731 | R53: 0.7925395535 | S53: 0.7919603495 | T53: 0.7932920747 | U53: 0.05020849351 | V53: -0.7917015997
C54: =C53+Sheet2!B$12 -> -1.47761194 | D54: 0.9914167393 | E54: 0.09225091772 | F54: -0.9871154538 | N54: 0.7905007086 | O54: 0.7923995669 | P54: 0.7933390119 | Q54: 0.7942955361 | R54: 0.7955652604 | S54: 0.797265404 | T54: 0.7933390119 | U54: 0.07381986707 | V54: -0.7898970915
C55: =C54+Sheet2!B$12 -> -1.447761194 | D55: 0.9851654311 | E55: 0.1209043855 | F55: -0.9777182908 | N55: 0.7867755903 | O55: 0.7912931355 | P55: 0.7934830031 | Q55: 0.7956903299 | R55: 0.7986008803 | S55: 0.8024786064 | T55: 0.7934830031 | U55: 0.09738016767 | V55: -0.7874848438
C56: =C55+Sheet2!B$12 -> -1.417910448 | D56: 0.9773453515 | E56: 0.1488408813 | F56: -0.9659453028 | N56: 0.7830504719 | O56: 0.7902859908 | P56: 0.7937210712 | Q56: 0.7971484754 | R56: 0.801637472 | S56: 0.8075881459 | T56: 0.7937210712 | U56: 0.1208765597 | V56: -0.7844628711
C57: =C56+Sheet2!B$12 -> -1.388059701 | D57: 0.9680678595 | E57: 0.1759185608 | F57: -0.9519495998 | N57: 0.7793253536 | O57: 0.7893781328 | P57: 0.7940502391 | Q57: 0.7986642152 | R57: 0.8046664767 | S57: 0.8125830202 | T57: 0.7940502391 | U57: 0.1442958506 | V57: -0.7808293601
C58: =C57+Sheet2!B$12 -> -1.358208955 | D58: 0.9574650679 | E58: 0.2020152949 | F58: -0.9359108809 | N58: 0.7756002352 | O58: 0.7885695616 | P58: 0.7944675297 | Q58: 0.8002319132 | R58: 0.8076797124 | S58: 0.817453014 | T58: 0.7944675297 | U58: 0.1676244885 | V58: -0.7765826979
C59: =C58+Sheet2!B$12 -> -1.328358209 | D59: 0.9456879621 | E59: 0.2270314547 | F59: -0.9180318296 | N59: 0.7718751168 | O59: 0.787860277 | P59: 0.7949699661 | Q59: 0.8018460551 | R59: 0.8106693689 | S59: 0.8221886784 | T59: 0.7949699661 | U59: 0.1908485622 | V59: -0.7717214998
C60: =C59+Sheet2!B$12 -> -1.298507463 | D60: 0.9329042496 | E60: 0.2508921686 | F60: -0.898534061 | N60: 0.7681499985 | O60: 0.7872502791 | P60: 0.7955545711 | Q60: 0.8035012479 | R60: 0.8136280023 | S60: 0.8267813101 | T60: 0.7955545711 | U60: 0.2139538025 | V60: -0.7662446385
C61: =C60+Sheet2!B$12 -> -1.268656716 | D61: 0.9192959724 | E61: 0.2735489974 | F61: -0.8776537078 | N61: 0.7644248801 | O61: 0.786739568 | P61: 0.7962183678 | Q61: 0.8051922204 | R61: 0.8165485295 | S61: 0.8312229306 | T61: 0.7962183678 | U61: 0.2369255852 | V61: -0.760151272
C62: =C61+Sheet2!B$12 -> -1.23880597 | D62: 0.9050569142 | E62: 0.2949809888 | F62: -0.855636742 | N62: 0.7606997618 | O62: 0.7863281435 | P62: 0.7969583791 | Q62: 0.8069138228 | R62: 0.819424223 | S62: 0.8355062663 | T62: 0.7969583791 | U62: 0.2597489362 | V62: -0.7534408723
C63: =C62+Sheet2!B$12 -> -1.208955224 | D63: 0.8903898413 | E63: 0.3151950812 | F63: -0.8327341294 | N63: 0.7569746434 | O63: 0.7860160058 | P63: 0.7977716279 | Q63: 0.8086610269 | R63: 0.8222487053 | S63: 0.8396247282 | T63: 0.7977716279 | U63: 0.2824085377 | V63: -0.7461132542
C64: =C63+Sheet2!B$12 -> -1.179104478 | D64: 0.8755036149 | E64: 0.3342258486 | F64: -0.809196924 | N64: 0.7532495251 | O64: 0.7858031548 | P64: 0.7986551372 | Q64: 0.8104289259 | R64: 0.8250159437 | S64: 0.8435723919 | T64: 0.7986551372 | U64: 0.3048887365 | V64: -0.738168603
C65: =C64+Sheet2!B$12 -> -1.149253731 | D65: 0.8606102169 | E65: 0.3521345865 | F65: -0.7852714043 | N65: 0.7495244067 | O65: 0.7856895905 | P65: 0.7996059299 | Q65: 0.8122127348 | R65: 0.8277202449 | S65: 0.8473439784 | T65: 0.7996059299 | U65: 0.3271735543 | V65: -0.729607503
C66: =C65+Sheet2!B$12 -> -1.119402985 | D66: 0.8459217315 | E66: 0.3690077595 | F66: -0.7611943571 | N66: 0.7457992883 | O66: 0.7856753129 | P66: 0.800621029 | Q66: 0.8140077901 | R66: 0.8303562496 | S66: 0.8509348342 | T66: 0.800621029 | U66: 0.3492466987 | V66: -0.7204309651
C67: =C66+Sheet2!B$12 -> -1.089552239 | D67: =(SIN(Q))^2+(COS(Q))^4 -> 0.8316473248 | E67: 0.3849548411 | F67: -0.7371886075 | N67: =$L$1*(Q-$K$2)/($K$1-$K$2)+$L$2*(Q-$K$1)/($K$2-$K$1) -> 0.74207417 | O67: =$L$1*(Q-$K$2)*(Q-$K$3)/($K$1-$K$2)/($K$1-$K$3)+$L$2*(Q-$K$1)*(Q-$K$3)/($K$2-$K$1)/($K$2-$K$3)+$L$3*(Q-$K$1)*(Q-$K$2)/($K$3-$K$1)/($K$3-$K$2) -> 0.785760322 | P67: =$L$1*(Q-$K$2)*(Q-$K$3)*(Q-$K$4)/($K$1-$K$2)/($K$1-$K$3)/($K$1-$K$4)+$L$2*(Q-$K$1)*(Q-$K$3)*(Q-$K$4)/($K$2-$K$1)/($K$2-$K$3) /($K$2-$K$4)+$L$3*(Q-$K$1)*(Q-$K$2)*(Q-$K$4)/($K$3-$K$1)/($K$3-$K$2) /($K$3-$K$4)+$L$4*(Q-$K$1)*(Q-$K$2)*(Q-$K$3)/($K$4-$K$1)/($K$4-$K$2) /($K$4-$K$3) -> 0.8016974574 | Q67: =$L$1*(Q-$K$2)*(Q-$K$3)*(Q-$K$4)*(Q-$K$5)/($K$1-$K$2)/($K$1-$K$3)/($K$1-$K$4)/($K$1-$K$5) +$L$2*(Q-$K$1)*(Q-$K$3)*(Q-$K$4)*(Q-$K$5)/($K$2-$K$1)/($K$2-$K$3)/($K$2-$K$4)/($K$2-$K$5) +$L$3*(Q-$K$1)*(Q-$K$2)*(Q-$K$4)*(Q-$K$5)/($K$3-$K$1)/($K$3-$K$2)/($K$3-$K$4)/($K$3-$K$5) +$L$4*(Q-$K$1)*(Q-$K$2)*(Q-$K$3)*(Q-$K$5)/($K$4-$K$1)/($K$4-$K$2)/($K$4-$K$3)/($K$4-$K$5)+$L$5*(Q-$K$1)*(Q-$K$2)*(Q-$K$3)*(Q-$K$4)/($K$5-$K$1)/($K$5-$K$2)/($K$5-$K$3)/($K$5-$K$4) -> 0.8158095496 | R67: =$L$1*(Q-$K$2)*(Q-$K$3)*(Q-$K$4)*(Q-$K$5)*(Q-$K$6)/($K$1-$K$2)/($K$1-$K$3)/($K$1-$K$4)/($K$1-$K$5)/($K$1-$K$6)+$L$2*(Q-$K$1)*(Q-$K$3)*(Q-$K$4)*(Q-$K$5)*(Q-$K$6)/($K$2-$K$1)/($K$2-$K$3)/($K$2-$K$4)/($K$2-$K$5)/($K$2-$K$6)+$L$3*(Q-$K$1)*(Q-$K$2)*(Q-$K$4)*(Q-$K$5)*(Q-$K$6)/($K$3-$K$1)/($K$3-$K$2)/($K$3-$K$4)/($K$3-$K$5)/($K$3-$K$6)+$L$4*(Q-$K$1)*(Q-$K$2)*(Q-$K$3)*(Q-$K$5)*(Q-$K$6)/($K$4-$K$1)/($K$4-$K$2)/($K$4-$K$3)/($K$4-$K$5)/($K$4-$K$6)+$L$5*(Q-$K$1)*(Q-$K$2)*(Q-$K$3)*(Q-$K$4)*(Q-$K$6)/($K$5-$K$1)/($K$5-$K$2)/($K$5-$K$3)/($K$5-$K$4)/($K$5-$K$6)+$L$6*(Q-$K$1)*(Q-$K$2)*(Q-$K$3)*(Q-$K$4)*(Q-$K$5)/($K$6-$K$1)/($K$6-$K$2)/($K$6-$K$3)/($K$6-$K$4)/($K$6-$K$5) -> 0.8329189272 | S67: =$L$1*(Q-$K$2)*(Q-$K$3)*(Q-$K$4)*(Q-$K$5)*(Q-$K$6)*(Q-$K$7)/($K$1-$K$2)/($K$1-$K$3)/($K$1-$K$4)/($K$1-$K$5)/($K$1-$K$6) /($K$1-$K$7)+$L$2*(Q-$K$1)*(Q-$K$3)*(Q-$K$4)*(Q-$K$5)*(Q-$K$6)*(Q-$K$7)/($K$2-$K$1)/($K$2-$K$3)/($K$2-$K$4)/($K$2-$K$5)/($K$2-$K$6) /($K$2-$K$7)+$L$3*(Q-$K$1)*(Q-$K$2)*(Q-$K$4)*(Q-$K$5)*(Q-$K$6)*(Q-$K$7)/($K$3-$K$1)/($K$3-$K$2)/($K$3-$K$4)/($K$3-$K$5)/($K$3-$K$6) /($K$3-$K$7)+$L$4*(Q-$K$1)*(Q-$K$2)*(Q-$K$3)*(Q-$K$5)*(Q-$K$6)*(Q-$K$7)/($K$4-$K$1)/($K$4-$K$2)/($K$4-$K$3)/($K$4-$K$5)/($K$4-$K$6) /($K$4-$K$7)+$L$5*(Q-$K$1)*(Q-$K$2)*(Q-$K$3)*(Q-$K$4)*(Q-$K$6)*(Q-$K$7)/($K$5-$K$1)/($K$5-$K$2)/($K$5-$K$3)/($K$5-$K$4)/($K$5-$K$6) /($K$5-$K$7)+$L$6*(Q-$K$1)*(Q-$K$2)*(Q-$K$3)*(Q-$K$4)*(Q-$K$5)*(Q-$K$7)/($K$6-$K$1)/($K$6-$K$2)/($K$6-$K$3)/($K$6-$K$4)/($K$6-$K$5) /($K$6-$K$7)+$L$7*(Q-$K$1)*(Q-$K$2)*(Q-$K$3)*(Q-$K$4)*(Q-$K$5)*(Q-$K$6)/($K$7-$K$1)/($K$7-$K$2)/($K$7-$K$3)/($K$7-$K$4)/($K$7-$K$5) /($K$7-$K$6) -> 0.8543409124 | T67: =IF(n=1,N67,IF(n=2,O67,IF(n=3,P67,IF(n=4,Q67,IF(n=5,R67,S67))))) -> 0.8016974574 | U67: 0.3710915771 | V67: -0.7106404538
C68: =C67+Sheet2!B$12 -> -1.059701493 | D68: 0.8179902663 | E68: =D68*COS(C68) -> 0.400105595 | F68: =D68*SIN(C68) -> -0.7134588906 | N68: 0.7383490516 | O68: 0.7859446178 | P68: 0.8028322381 | Q68: 0.817613593 | R68: 0.8354035702 | S68: 0.8575587536 | T68: 0.8028322381 | U68: =T68*COS($C68) -> 0.3926913114 | V68: =T68*SIN($C68) -> -0.7002379142
C69: =C68+Sheet2!B$12 -> -1.029850746 | D69: 0.8051450345 | E69: 0.4146068545 | F69: -0.6901881503 | N69: 0.7346239333 | O69: 0.7862282003 | P69: 0.804022394 | Q69: 0.8194156214 | R69: 0.837805789 | S69: 0.860585467 | T69: 0.804022394 | U69: 0.4140287544 | V69: -0.689225798
C70: =C69+Sheet2!B$12 -> -1 | D70: 0.7932945474 | E70: 0.4286188732 | F70: -0.667534344 | N70: 0.7308988149 | O70: 0.7866110695 | P70: 0.8052649482 | Q70: 0.8212114572 | R70: 0.8401215065 | S70: 0.8634187121 | T70: 0.8052649482 | U70: 0.4350865083 | V70: -0.677607089
C71: =C70+Sheet2!B$12 -> -0.9701492537 | D71: 0.7826075575 | E71: 0.4423113279 | F71: -0.6456278172 | N71: 0.7271736966 | O71: 0.7870932255 | P71: 0.8065569235 | Q71: 0.8229970449 | R71: 0.8423469526 | S71: 0.8660566799 | T71: 0.8065569235 | U71: 0.4558469445 | V71: -0.6653853274
C72: =C71+Sheet2!B$12 -> -0.9402985075 | D72: 0.7732362492 | E72: 0.455859062 | F72: -0.6245693017 | N72: 0.7234485782 | O72: 0.7876746681 | P72: 0.8078953428 | Q72: 0.82476845 | R72: 0.8444786592 | S72: 0.8684980754 | T72: 0.8078953428 | U72: 0.4762922245 | V72: -0.6525646342
C73: =C72+Sheet2!B$12 -> -0.9104477612 | D73: 0.7653140711 | E73: 0.4694376656 | F73: -0.6044285778 | N73: 0.7197234598 | O73: 0.7883553975 | P73: 0.8092772292 | Q73: 0.8265218599 | R73: 0.8465134542 | S73: 0.870742099 | T73: 0.8092772292 | U73: 0.4964043229 | V73: -0.6391497336
C74: =C73+Sheet2!B$12 -> -0.8805970149 | D74: 0.7589538363 | E74: 0.483218992 | F74: -0.5852438222 | N74: 0.7159983415 | O74: 0.7891354136 | P74: 0.8106996056 | Q74: 0.8282535834 | R74: 0.8484484568 | S74: 0.8727884293 | T74: 0.8106996056 | U74: 0.5161650519 | V74: -0.6251459748
C75: =C74+Sheet2!B$12 -> -0.8507462687 | D75: 0.7542461154 | E75: 0.497366712 | F75: -0.5670216542 | N75: 0.7122732231 | O75: 0.7900147163 | P75: 0.812159495 | Q75: 0.829960051 | R75: 0.8502810715 | S75: 0.8746372056 | T75: 0.812159495 | U75: 0.5355560863 | V75: -0.6105593531
C76: =C75+Sheet2!B$12 -> -0.8208955224 | D76: 0.7512579469 | E76: 0.5120320063 | F76: -0.5497378714 | N76: 0.7085481048 | O76: 0.7909933058 | P76: 0.8136539202 | Q76: 0.8316378145 | R76: 0.8520089832 | S76: 0.87628901 | T76: 0.8136539202 | U76: 0.5545589913 | V76: -0.5953965293
C77: =C76+Sheet2!B$12 -> -0.7910447761 | D77: 0.7500318829 | E77: 0.5273494956 | F77: -0.5333388556 | N77: 0.7048229864 | O77: 0.792071182 | P77: 0.8151799043 | Q77: 0.8332835474 | R77: 0.8536301516 | S77: 0.8777448513 | T77: 0.8151799043 | U77: 0.57315525 | V77: -0.5796648478
C78: =C77+Sheet2!B$12 -> -0.7611940299 | D78: 0.7505853826 | E78: 0.5434335007 | F78: -0.5177436112 | N78: 0.7010978681 | O78: 0.7932483449 | P78: 0.8167344702 | Q78: 0.8348940448 | R78: 0.8551428058 | S78: 0.8790061473 | T78: 0.8167344702 | U78: 0.5913262935 | V78: -0.5633723542
C79: =C78+Sheet2!B$12 -> -0.7313432836 | D79: 0.7529105642 | E79: 0.5603747202 | F79: -0.5028463887 | N79: 0.6973727497 | O79: 0.7945247945 | P79: 0.8183146408 | Q79: 0.8364662233 | R79: 0.856545439 | S79: 0.8800747087 | T79: 0.8183146408 | U79: 0.6090535313 | V79: -0.5465278103
C80: =C79+Sheet2!B$12 -> -0.7014925373 | D80: 0.7569743167 | E80: 0.5782374024 | F80: -0.4885198283 | N80: 0.6936476313 | O80: 0.7959005308 | P80: 0.8199174391 | Q80: 0.8379971211 | R80: 0.8578368031 | S80: 0.8809527225 | T80: 0.8199174391 | U80: 0.6263183832 | V80: -0.529140709
C81: =C80+Sheet2!B$12 -> -0.671641791 | D81: 0.7627187717 | E81: 0.5970570788 | F81: -0.4746185515 | N81: 0.689922513 | O81: 0.7973755539 | P81: 0.8215398881 | Q81: 0.8394838977 | R81: 0.8590159034 | S81: 0.8816427359 | T81: 0.8215398881 | U81: 0.6431023123 | V81: -0.5112212864
C82: =C81+Sheet2!B$12 -> -0.6417910448 | D82: 0.7700621274 | E82: 0.6168389141 | F82: -0.460983117 | N82: 0.6861973946 | O82: 0.7989498636 | P82: 0.8231790107 | Q82: 0.8409238346 | R82: 0.860081993 | S82: 0.8821476401 | T82: 0.8231790107 | U82: 0.6593868585 | V82: -0.4927805337
C83: =C82+Sheet2!B$12 -> -0.6119402985 | D83: 0.7788998133 | E83: 0.6375567133 | F83: -0.4474442495 | N83: 0.6824722763 | O83: 0.8006234601 | P83: 0.8248318298 | Q83: 0.8423143344 | R83: 0.8610345676 | S83: 0.8824706548 | T83: 0.8248318298 | U83: 0.6751536738 | V83: -0.4738302061
C84: =C83+Sheet2!B$12 -> -0.5820895522 | D84: 0.7891059795 | E84: 0.6591526137 | F84: -0.4338272454 | N84: 0.6787471579 | O84: 0.8023963432 | P84: 0.8264953685 | Q84: 0.8436529215 | R84: 0.8618733603 | S84: 0.8826153125 | T84: 0.8264953685 | U84: 0.6903845573 | V84: -0.4543828311
C85: =C84+Sheet2!B$12 -> -0.552238806 | D85: 0.8005352888 | E85: 0.6815374723 | F85: -0.4199564531 | N85: 0.6750220396 | O85: 0.8042685131 | P85: 0.8281666495 | Q85: 0.8449372418 | R85: 0.8625983356 | S85: 0.8825854433 | T85: 0.8281666495 | U85: 0.7050614918 | V85: -0.4344517145
C86: =C85+Sheet2!B$12 -> -0.5223880597 | D86: 0.8130249862 | E86: 0.704591947 | F86: -0.40565973 | N86: 0.6712969212 | O86: 0.8062399697 | P86: 0.829842696 | Q86: 0.8461650628 | R86: 0.8632096849 | S86: 0.8823851597 | T86: 0.829842696 | U86: 0.7191666809 | V86: -0.4140509452
C87: =C86+Sheet2!B$12 -> -0.4925373134 | D87: 0.8263972166 | E87: 0.7281682505 | F87: -0.390772771 | N87: 0.6675718028 | O87: 0.8083107129 | P87: 0.8315205309 | Q87: 0.8473342734 | R87: 0.8637078201 | S87: 0.8820188414 | T87: 0.8315205309 | U87: 0.7326825866 | V87: -0.3931953974
C88: =C87+Sheet2!B$12 -> -0.4626865672 | D88: 0.8404615576 | E88: 0.7520925457 | F88: -0.375143216 | N88: 0.6638466845 | O88: 0.8104807429 | P88: 0.833197177 | Q88: 0.8484428843 | R88: 0.8640933694 | S88: 0.8814911213 | T88: 0.833197177 | U88: 0.745591967 | V88: -0.3719007321
C89: =C88+Sheet2!B$12 -> -0.4328358209 | D89: 0.8550177308 | E89: 0.7761679319 | F89: -0.3586344399 | N89: 0.6601215661 | O89: 0.8127500596 | P89: 0.8348696574 | Q89: 0.8494890275 | R89: 0.8643671708 | S89: 0.8808068705 | T89: 0.8348696574 | U89: 0.7578779154 | V89: -0.3501833952
C90: =C89+Sheet2!B$12 -> -0.4029850746 | D90: 0.8698584544 | E90: 0.8001779639 | F90: -0.3411289446 | N90: 0.6563964478 | O90: 0.8151186631 | P90: 0.836534995 | Q90: 0.8504709566 | R90: 0.8645302673 | S90: 0.8799711842 | T90: 0.836534995 | U90: 0.7695238986 | V90: -0.3280606155
C91: =C90+Sheet2!B$12 -> -0.3731343284 | D91: 0.8847723944 | E91: 0.8238906276 | F91: -0.3225312754 | N91: 0.6526713294 | O91: 0.8175865532 | P91: 0.8381902128 | Q91: 0.851387047 | R91: 0.8645839018 | S91: 0.8789893676 | T91: 0.8381902128 | U91: 0.7805137964 | V91: -0.3055503993
C92: =C91+Sheet2!B$12 -> -0.3432835821 | D92: 0.8995471741 | E92: 0.847062692 | F92: -0.3027703984 | N92: 0.6489462111 | O92: 0.82015373 | P92: 0.8398323337 | Q92: 0.8522357952 | R92: 0.8645295108 | S92: 0.8778669221 | T92: 0.8398323337 | U92: 0.7908319407 | V92: -0.2826715237
C93: =C92+Sheet2!B$12 -> -0.3134328358 | D93: 0.9139723985 | E93: 0.8694443436 | F93: -0.2818014879 | N93: 0.6452210927 | O93: 0.8228201935 | P93: 0.8414583807 | Q93: 0.8530158197 | R93: 0.8643687201 | S93: 0.876609532 | T93: 0.8414583807 | U93: 0.8004631548 | V93: -0.2594435281
C94: =C93+Sheet2!B$12 -> -0.2835820896 | D94: 0.9278426504 | E94: 0.8907840063 | F94: -0.2596070842 | N94: 0.6414959743 | O94: 0.8255859438 | P94: 0.8430653766 | Q94: 0.8537258603 | R94: 0.8641033384 | S94: 0.8752230506 | T94: 0.8430653766 | U94: 0.8093927924 | V94: -0.2358867036
C95: =C94+Sheet2!B$12 -> -0.2537313433 | D95: 0.9409604155 | E95: 0.9108332434 | F95: -0.2361976002 | N95: 0.637770856 | O95: 0.8284509808 | P95: 0.8446503446 | Q95: 0.8543647783 | R95: 0.863735353 | S95: 0.8737134873 | T95: 0.8446503446 | U95: 0.8176067772 | V95: -0.2120220799
C96: =C95+Sheet2!B$12 -> -0.223880597 | D96: 0.9531388949 | E96: 0.9293516383 | F96: -0.2116111652 | N96: 0.6340457376 | O96: 0.8314153044 | P96: 0.8462103074 | Q96: 0.8549315568 | R96: 0.8632669233 | S96: 0.8720869946 | T96: 0.8462103074 | U96: 0.8250916417 | V96: -0.1878714111
C97: =C96+Sheet2!B$12 -> -0.1940298507 | D97: 0.9642046653 | E97: 0.9461115482 | F97: -0.1859128152 | N97: 0.6303206193 | O97: 0.8344789148 | P97: 0.8477422881 | Q97: 0.8554253003 | R97: 0.8627003763 | S97: 0.8703498555 | T97: 0.8477422881 | U97: 0.8318345654 | V97: -0.1634571591
C98: =C97+Sheet2!B$12 -> -0.1641791045 | D98: 0.9740001486 | E98: 0.9609026293 | F98: -0.1591930478 | N98: 0.6265955009 | O98: 0.8376418119 | P98: 0.8492433096 | Q98: 0.8558452347 | R98: 0.8620382007 | S98: 0.8685084707 | T98: 0.8492433096 | U98: 0.8378234134 | V98: -0.1388024745
C99: =C98+Sheet2!B$12 -> -0.1343283582 | D99: 0.9823858557 | E99: 0.9735360368 | F99: -0.1315657801 | N99: 0.6228703825 | O99: 0.8409039957 | P99: 0.8507103949 | Q99: 0.8561907078 | R99: 0.861283042 | S99: 0.8665693465 | T99: 0.8507103949 | U99: 0.8430467739 | V99: -0.1139311769
C100: =C99+Sheet2!B$12 -> -0.1044776119 | D100: 0.9892423729 | E100: 0.9838482094 | F100: -0.1031657559 | N100: 0.6191452642 | O100: 0.8442654662 | P100: 0.852140567 | Q100: 0.8564611887 | R100: 0.8604376964 | S100: 0.8645390827 | T100: 0.852140567 | U100: 0.8474939953 | V100: -0.08886773167
C101: =C100+Sheet2!B$12 -> -0.07462686567 | D101: 0.9944720625 | E101: 0.9917041559 | F101: -0.07414546684 | N101: 0.6154201458 | O101: 0.8477262234 | P101: 0.8535308486 | Q101: 0.8566562681 | R101: 0.8595051062 | S101: 0.8624243606 | T101: 0.8535308486 | U101: 0.8511552227 | V101: -0.06363722584
C102: =C101+Sheet2!B$12 -> -0.0447761194 | D102: 0.9980004529 | E102: 0.9970001741 | F102: -0.04467165691 | N102: 0.6116950275 | O102: 0.8512862673 | P102: 0.8548782629 | Q102: 0.8567756582 | R102: 0.858488354 | S102: 0.8602319313 | T102: 0.8548782629 | U102: 0.854021433 | V102: -0.03826534182
C103: =C102+Sheet2!B$12 -> -0.01492537313 | D103: 0.9997772994 | E103: 0.9996659429 | F103: -0.01492149523 | N103: 0.6079699091 | O103: 0.8549455979 | P103: 0.8561798328 | Q103: 0.8568191929 | R103: 0.8573906573 | S103: 0.8579686045 | T103: 0.8561798328 | U103: 0.8560844704 | V103: -0.01277832903
C104: =C103+Sheet2!B$12 -> 0.01492537313 | D104: 0.9997772994 | E104: 0.9996659429 | F104: 0.01492149523 | N104: 0.6042447908 | O104: 0.8587042153 | P104: 0.8574325812 | Q104: 0.8567868275 | R104: 0.8562153632 | S104: 0.8556412371 | T104: 0.8574325812 | U104: 0.8573370793 | V104: 0.01279702607
C105: =C104+Sheet2!B$12 -> 0.0447761194 | D105: 0.9980004529 | E105: =D105*COS(C105) -> 0.9970001741 | F105: =D105*SIN(C105) -> 0.04467165691 | N105: 0.6005196724 | O105: 0.8625621193 | P105: 0.8586335311 | Q105: 0.856678639 | R105: 0.8549659432 | S105: 0.8532567222 | T105: 0.8586335311 | U105: 0.8577729373 | V105: 0.03843343197
C106: =C105+Sheet2!B$12 -> 0.07462686567 | D106: 0.9944720625 | E106: 0.9917041559 | F106: 0.07414546684 | N106: 0.596794554 | O106: 0.8665193101 | P106: 0.8597797054 | Q106: 0.8564948258 | R106: 0.8536459876 | S106: 0.8508219782 | T106: 0.8597797054 | U106: 0.857386687 | V106: 0.06410312571
C107: =C106+Sheet2!B$12 -> 0.1044776119 | D107: 0.9892423729 | E107: 0.9838482094 | F107: 0.1031657559 | N107: 0.5930694357 | O107: 0.8705757876 | P107: 0.8608681271 | Q107: 0.8562357079 | R107: 0.8522592002 | S107: 0.8483439384 | T107: 0.8608681271 | U107: 0.8561739656 | V107: 0.08977790835
C108: =C107+Sheet2!B$12 -> 0.1343283582 | D108: 0.9823858557 | E108: 0.9735360368 | F108: 0.1315657801 | N108: 0.5893443173 | O108: 0.8747315517 | P108: 0.8618958191 | Q108: 0.8559017269 | R108: 0.8508093927 | S108: 0.8458295406 | T108: 0.8618958191 | U108: 0.8541314342 | V108: 0.1154291821
C109: =C108+Sheet2!B$12 -> 0.1641791045 | D109: 0.9740001486 | E109: 0.9609026293 | F109: 0.1591930478 | N109: 0.585619199 | O109: 0.8789866026 | P109: 0.8628598044 | Q109: 0.8554934458 | R109: 0.8493004798 | S109: 0.8432857169 | T109: 0.8628598044 | U109: 0.8512568052 | V109: 0.1410279889
C110: =C109+Sheet2!B$12 -> 0.1940298507 | D110: 0.9642046653 | E110: 0.9461115482 | F110: 0.1859128152 | N110: 0.5818940806 | O110: 0.8833409402 | P110: 0.8637571059 | Q110: 0.8550115495 | R110: 0.8477364735 | S110: 0.8407193837 | T110: 0.8637571059 | U110: 0.8475488682 | V110: 0.1665450511
C111: =C110+Sheet2!B$12 -> 0.223880597 | D111: 0.9531388949 | E111: 0.9293516383 | F111: 0.2116111652 | N111: 0.5781689623 | O111: 0.8877945645 | P111: 0.8645847466 | Q111: 0.854456844 | R111: 0.8461214776 | S111: 0.838137432 | T111: 0.8645847466 | U111: 0.8430075145 | V111: 0.1919508129
C112: =C111+Sheet2!B$12 -> 0.2537313433 | D112: 0.9409604155 | E112: 0.9108332434 | F112: 0.2361976002 | N112: 0.5744438439 | O112: 0.8923474755 | P112: 0.8653397494 | Q112: 0.8538302573 | R112: 0.8444596826 | S112: 0.8355467181 | T112: 0.8653397494 | U112: 0.8376337597 | V112: 0.2172154841
C113: =C112+Sheet2!B$12 -> 0.2835820896 | D113: 0.9278426504 | E113: 0.8907840063 | F113: 0.2596070842 | N113: 0.5707187255 | O113: 0.8969996732 | P113: 0.8660191373 | Q113: 0.8531328384 | R113: 0.8427553603 | S113: 0.8329540539 | T113: 0.8660191373 | U113: 0.8314297648 | V113: 0.2423090844
C114: =C113+Sheet2!B$12 -> 0.3134328358 | D114: 0.9139723985 | E114: 0.8694443436 | F114: 0.2818014879 | N114: 0.5669936072 | O114: 0.9017511577 | P114: 0.8666199333 | Q114: 0.8523657585 | R114: 0.8410128581 | S114: 0.8303661984 | T114: 0.8666199333 | U114: 0.8243988552 | V114: 0.2672014899
C115: =C114+Sheet2!B$12 -> 0.3432835821 | D115: 0.8995471741 | E115: 0.847062692 | F115: 0.3027703984 | N115: 0.5632684888 | O115: 0.9066019288 | P115: 0.8671391602 | Q115: 0.8515303098 | R115: 0.8392365942 | S115: 0.8277898482 | T115: 0.8671391602 | U115: 0.8165455382 | V115: 0.2918624799
C116: =C115+Sheet2!B$12 -> 0.3731343284 | D116: 0.8847723944 | E116: 0.8238906276 | F116: 0.3225312754 | N116: 0.5595433705 | O116: 0.9115519867 | P116: 0.8675738411 | Q116: 0.8506279063 | R116: 0.8374310515 | S116: 0.8252316295 | T116: 0.8675738411 | U116: 0.807875518 | V116: 0.3162617858
C117: =C116+Sheet2!B$12 -> 0.4029850746 | D117: 0.8698584544 | E117: 0.8001779639 | F117: 0.3411289446 | N117: 0.5558182521 | O117: 0.9166013312 | P117: 0.8679209988 | Q117: 0.8496600836 | R117: 0.8356007729 | S117: 0.822698089 | T117: 0.8679209988 | U117: 0.7983957092 | V117: 0.3403691403
C118: =C117+Sheet2!B$12 -> 0.4328358209 | D118: 0.8550177308 | E118: 0.7761679319 | F118: 0.3586344399 | N118: 0.5520931338 | O118: 0.9217499625 | P118: 0.8681776564 | Q118: 0.8486284988 | R118: 0.8337503555 | S118: 0.8201956863 | T118: 0.8681776564 | U118: 0.7881142482 | V118: 0.3641543284
C119: =C118+Sheet2!B$12 -> 0.4626865672 | D119: 0.8404615576 | E119: 0.7520925457 | F119: 0.375143216 | N119: 0.5483680154 | O119: 0.9269978805 | P119: 0.8683408368 | Q119: 0.8475349304 | R119: 0.8318844453 | S119: 0.8177307855 | T119: 0.8683408368 | U119: 0.7770405018 | V119: 0.3875872384
C120: =C119+Sheet2!B$12 -> 0.4925373134 | D120: 0.8263972166 | E120: 0.7281682505 | F120: 0.390772771 | N120: 0.544642897 | O120: 0.9323450851 | P120: 0.8684075629 | Q120: 0.8463812786 | R120: 0.8300077319 | S120: 0.8153096476 | T120: 0.8684075629 | U120: 0.7651850746 | V120: 0.4106379147
C121: =C120+Sheet2!B$12 -> 0.5223880597 | D121: 0.8130249862 | E121: 0.704591947 | F121: 0.40565973 | N121: 0.5409177787 | O121: 0.9377915765 | P121: 0.8683748577 | Q121: 0.8451695652 | R121: 0.8281249432 | S121: 0.812938423 | T121: 0.8683748577 | U121: 0.7525598131 | V121: 0.4332766105
C122: =C121+Sheet2!B$12 -> 0.552238806 | D122: 0.8005352888 | E122: 0.6815374723 | F122: 0.4199564531 | N122: 0.5371926603 | O122: 0.9433373546 | P122: 0.8682397442 | Q122: 0.8439019335 | R122: 0.8262408396 | S122: 0.810623144 | T122: 0.8682397442 | U122: 0.7391778087 | V122: 0.4554738417
C123: =C122+Sheet2!B$12 -> 0.5820895522 | D123: 0.7891059795 | E123: 0.6591526137 | F123: 0.4338272454 | N123: 0.533467542 | O123: 0.9489824195 | P123: 0.8679992452 | Q123: 0.8425806482 | R123: 0.8243602094 | S123: 0.8083697175 | T123: 0.8679992452 | U123: 0.7250533971 | V123: 0.4772004411
C124: =C123+Sheet2!B$12 -> 0.6119402985 | D124: 0.7788998133 | E124: 0.6375567133 | F124: 0.4474442495 | N124: 0.5297424236 | O124: 0.954726771 | P124: 0.8676503838 | Q124: 0.8412080957 | R124: 0.8224878624 | S124: 0.8061839188 | T124: 0.8676503838 | U124: 0.7102021564 | V124: 0.4984276132
C125: =C124+Sheet2!B$12 -> 0.6417910448 | D125: 0.7700621274 | E125: 0.6168389141 | F125: 0.460983117 | N125: 0.5260173053 | O125: 0.9605704092 | P125: 0.8671901829 | Q125: 0.839786784 | R125: 0.8206286256 | S125: 0.8040713839 | T125: 0.8671901829 | U125: 0.694640902 | V125: 0.519126989
C126: =C125+Sheet2!B$12 -> 0.671641791 | D126: 0.7627187717 | E126: 0.5970570788 | F126: 0.4746185515 | N126: 0.5222921869 | O126: 0.9665133341 | P126: 0.8666156655 | Q126: 0.8383193426 | R126: 0.818787337 | S126: 0.8020376038 | T126: 0.8666156655 | U126: 0.6783876795 | V126: 0.5392706815
C127: =C126+Sheet2!B$12 -> 0.7014925373 | D127: 0.7569743167 | E127: 0.5782374024 | F127: 0.4885198283 | N127: 0.5185670685 | O127: 0.9725555458 | P127: 0.8659238544 | Q127: 0.8368085225 | R127: 0.8169688404 | S127: 0.8000879179 | T127: 0.8659238544 | U127: 0.6614617552 | V127: 0.5588313412
C128: =C127+Sheet2!B$12 -> 0.7313432836 | D128: 0.7529105642 | E128: 0.5603747202 | F128: 0.5028463887 | N128: 0.5148419502 | O128: 0.9786970441 | P128: 0.8651117727 | Q128: 0.8352571962 | R128: 0.8151779805 | S128: 0.7982275081 | T128: 0.8651117727 | U128: 0.6438836039 | V128: 0.5777822114
C129: =C128+Sheet2!B$12 -> 0.7611940299 | D129: 0.7505853826 | E129: 0.5434335007 | F129: 0.5177436112 | N129: 0.5111168318 | O129: 0.9849378292 | P129: 0.8641764432 | Q129: 0.8336683579 | R129: 0.8134195969 | S129: 0.7964613925 | T129: 0.8641764432 | U129: 0.6256748941 | V129: 0.5960971834
C130: =C129+Sheet2!B$12 -> 0.7910447761 | D130: 0.7500318829 | E130: 0.5273494956 | F130: 0.5333388556 | N130: 0.5073917135 | O130: 0.991277901 | P130: 0.8631148891 | Q130: 0.8320451232 | R130: 0.8116985191 | S130: 0.7947944207 | T130: 0.8631148891 | U130: 0.6068584706 | V130: 0.613750852
C131: =C130+Sheet2!B$12 -> 0.8208955224 | D131: =(SIN(Q))^2+(COS(Q))^4 -> 0.7512579469 | E131: 0.5120320063 | F131: 0.5497378714 | N131: =$L$1*(Q-$K$2)/($K$1-$K$2)+$L$2*(Q-$K$1)/($K$2-$K$1) -> 0.5036665951 | O131: =$L$1*(Q-$K$2)*(Q-$K$3)/($K$1-$K$2)/($K$1-$K$3)+$L$2*(Q-$K$1)*(Q-$K$3)/($K$2-$K$1)/($K$2-$K$3)+$L$3*(Q-$K$1)*(Q-$K$2)/($K$3-$K$1)/($K$3-$K$2) -> 0.9977172595 | P131: =$L$1*(Q-$K$2)*(Q-$K$3)*(Q-$K$4)/($K$1-$K$2)/($K$1-$K$3)/($K$1-$K$4)+$L$2*(Q-$K$1)*(Q-$K$3)*(Q-$K$4)/($K$2-$K$1)/($K$2-$K$3) /($K$2-$K$4)+$L$3*(Q-$K$1)*(Q-$K$2)*(Q-$K$4)/($K$3-$K$1)/($K$3-$K$2) /($K$3-$K$4)+$L$4*(Q-$K$1)*(Q-$K$2)*(Q-$K$3)/($K$4-$K$1)/($K$4-$K$2) /($K$4-$K$3) -> 0.8619241331 | Q131: =$L$1*(Q-$K$2)*(Q-$K$3)*(Q-$K$4)*(Q-$K$5)/($K$1-$K$2)/($K$1-$K$3)/($K$1-$K$4)/($K$1-$K$5) +$L$2*(Q-$K$1)*(Q-$K$3)*(Q-$K$4)*(Q-$K$5)/($K$2-$K$1)/($K$2-$K$3)/($K$2-$K$4)/($K$2-$K$5) +$L$3*(Q-$K$1)*(Q-$K$2)*(Q-$K$4)*(Q-$K$5)/($K$3-$K$1)/($K$3-$K$2)/($K$3-$K$4)/($K$3-$K$5) +$L$4*(Q-$K$1)*(Q-$K$2)*(Q-$K$3)*(Q-$K$5)/($K$4-$K$1)/($K$4-$K$2)/($K$4-$K$3)/($K$4-$K$5)+$L$5*(Q-$K$1)*(Q-$K$2)*(Q-$K$3)*(Q-$K$4)/($K$5-$K$1)/($K$5-$K$2)/($K$5-$K$3)/($K$5-$K$4) -> 0.8303907295 | R131: =$L$1*(Q-$K$2)*(Q-$K$3)*(Q-$K$4)*(Q-$K$5)*(Q-$K$6)/($K$1-$K$2)/($K$1-$K$3)/($K$1-$K$4)/($K$1-$K$5)/($K$1-$K$6)+$L$2*(Q-$K$1)*(Q-$K$3)*(Q-$K$4)*(Q-$K$5)*(Q-$K$6)/($K$2-$K$1)/($K$2-$K$3)/($K$2-$K$4)/($K$2-$K$5)/($K$2-$K$6)+$L$3*(Q-$K$1)*(Q-$K$2)*(Q-$K$4)*(Q-$K$5)*(Q-$K$6)/($K$3-$K$1)/($K$3-$K$2)/($K$3-$K$4)/($K$3-$K$5)/($K$3-$K$6)+$L$4*(Q-$K$1)*(Q-$K$2)*(Q-$K$3)*(Q-$K$5)*(Q-$K$6)/($K$4-$K$1)/($K$4-$K$2)/($K$4-$K$3)/($K$4-$K$5)/($K$4-$K$6)+$L$5*(Q-$K$1)*(Q-$K$2)*(Q-$K$3)*(Q-$K$4)*(Q-$K$6)/($K$5-$K$1)/($K$5-$K$2)/($K$5-$K$3)/($K$5-$K$4)/($K$5-$K$6)+$L$6*(Q-$K$1)*(Q-$K$2)*(Q-$K$3)*(Q-$K$4)*(Q-$K$5)/($K$6-$K$1)/($K$6-$K$2)/($K$6-$K$3)/($K$6-$K$4)/($K$6-$K$5) -> 0.8100195608 | S131: =$L$1*(Q-$K$2)*(Q-$K$3)*(Q-$K$4)*(Q-$K$5)*(Q-$K$6)*(Q-$K$7)/($K$1-$K$2)/($K$1-$K$3)/($K$1-$K$4)/($K$1-$K$5)/($K$1-$K$6) /($K$1-$K$7)+$L$2*(Q-$K$1)*(Q-$K$3)*(Q-$K$4)*(Q-$K$5)*(Q-$K$6)*(Q-$K$7)/($K$2-$K$1)/($K$2-$K$3)/($K$2-$K$4)/($K$2-$K$5)/($K$2-$K$6) /($K$2-$K$7)+$L$3*(Q-$K$1)*(Q-$K$2)*(Q-$K$4)*(Q-$K$5)*(Q-$K$6)*(Q-$K$7)/($K$3-$K$1)/($K$3-$K$2)/($K$3-$K$4)/($K$3-$K$5)/($K$3-$K$6) /($K$3-$K$7)+$L$4*(Q-$K$1)*(Q-$K$2)*(Q-$K$3)*(Q-$K$5)*(Q-$K$6)*(Q-$K$7)/($K$4-$K$1)/($K$4-$K$2)/($K$4-$K$3)/($K$4-$K$5)/($K$4-$K$6) /($K$4-$K$7)+$L$5*(Q-$K$1)*(Q-$K$2)*(Q-$K$3)*(Q-$K$4)*(Q-$K$6)*(Q-$K$7)/($K$5-$K$1)/($K$5-$K$2)/($K$5-$K$3)/($K$5-$K$4)/($K$5-$K$6) /($K$5-$K$7)+$L$6*(Q-$K$1)*(Q-$K$2)*(Q-$K$3)*(Q-$K$4)*(Q-$K$5)*(Q-$K$7)/($K$6-$K$1)/($K$6-$K$2)/($K$6-$K$3)/($K$6-$K$4)/($K$6-$K$5) /($K$6-$K$7)+$L$7*(Q-$K$1)*(Q-$K$2)*(Q-$K$3)*(Q-$K$4)*(Q-$K$5)*(Q-$K$6)/($K$7-$K$1)/($K$7-$K$2)/($K$7-$K$3)/($K$7-$K$4)/($K$7-$K$5) /($K$7-$K$6) -> 0.7932312673 | T131: =IF(n=1,N131,IF(n=2,O131,IF(n=3,P131,IF(n=4,Q131,IF(n=5,R131,S131))))) -> 0.8619241331 | U131: 0.5874583357 | V131: 0.6307185704
C132: =C131+Sheet2!B$12 -> 0.8507462687 | D132: 0.7542461154 | E132: 0.497366712 | F132: 0.5670216542 | N132: 0.4999414768 | O132: 1.004255905 | P132: 0.8606011983 | Q132: 0.8287085355 | R132: 0.808387515 | S132: 0.7917764277 | T132: 0.8606011983 | U132: =T132*COS($C132) -> 0.567499626 | V132: =T132*SIN($C132) -> 0.6469765042
C133: =C132+Sheet2!B$12 -> 0.8805970149 | D133: 0.7589538363 | E133: 0.483218992 | F133: 0.5852438222 | N133: 0.4962163584 | O133: 1.010893837 | P133: 0.8591431076 | Q133: 0.8270020215 | R133: 0.8068071481 | S133: 0.7904342124 | T133: 0.8591431076 | U133: 0.5470085881 | V133: 0.6625016859
C134: =C133+Sheet2!B$12 -> 0.9104477612 | D134: 0.7653140711 | E134: 0.4694376656 | F134: 0.6044285778 | N134: 0.49249124 | O134: 1.017631055 | P134: 0.8575468839 | Q134: 0.8252747894 | R134: 0.8052831951 | S134: 0.7892087425 | T134: 0.8575468839 | U134: 0.5260125516 | V134: 0.6772720677
C135: =C134+Sheet2!B$12 -> 0.9402985075 | D135: 0.7732362492 | E135: 0.455859062 | F135: 0.6245693017 | N135: 0.4887661217 | O135: 1.02446756 | P135: 0.8558095503 | Q135: 0.8235305626 | R135: 0.8038203535 | S135: 0.7881039454 | T135: 0.8558095503 | U135: 0.5045398987 | V135: 0.6912665745
C136: =C135+Sheet2!B$12 -> 0.9701492537 | D136: 0.7826075575 | E136: 0.4423113279 | F136: 0.6456278172 | N136: 0.4850410033 | O136: 1.031403353 | P136: 0.8539281296 | Q136: 0.8217731862 | R136: 0.8024232785 | S136: 0.78712355 | T136: 0.8539281296 | U136: 0.4826200326 | V136: 0.704465155
C137: =C136+Sheet2!B$12 -> 1 | D137: 0.7932945474 | E137: 0.4286188732 | F137: 0.667534344 | N137: 0.481315885 | O137: 1.038438431 | P137: 0.8518996448 | Q137: 0.8200066267 | R137: 0.8010965775 | S137: 0.786271083 | T137: 0.8518996448 | U137: 0.4602833425 | V137: 0.7168488331
C138: =C137+Sheet2!B$12 -> 1.029850746 | D138: 0.8051450345 | E138: 0.4146068545 | F138: 0.6901881503 | N138: 0.4775907666 | O138: 1.045572797 | P138: 0.8497211189 | Q138: 0.8182349721 | R138: 0.7998448045 | S138: 0.7855498648 | T138: 0.8497211189 | U138: 0.4375611662 | V138: 0.7283997568
C139: =C138+Sheet2!B$12 -> 1.059701493 | D139: 0.8179902663 | E139: 0.400105595 | F139: 0.7134588906 | N139: 0.4738656483 | O139: 1.052806449 | P139: 0.8473895748 | Q139: 0.8164624321 | R139: 0.7986724549 | S139: 0.7849630059 | T139: 0.8473895748 | U139: 0.4144857513 | V139: 0.7391012471
C140: =C139+Sheet2!B$12 -> 1.089552239 | D140: 0.8316473248 | E140: 0.3849548411 | F140: 0.7371886075 | N140: 0.4701405299 | O140: 1.060139388 | P140: 0.8449020354 | Q140: 0.8146933379 | R140: 0.7975839603 | S140: 0.7845134033 | T140: 0.8449020354 | U140: 0.3910902123 | V140: 0.7489378447
C141: =C140+Sheet2!B$12 -> 1.119402985 | D141: 0.8459217315 | E141: 0.3690077595 | F141: 0.7611943571 | N141: 0.4664154115 | O141: 1.067571613 | P141: 0.8422555238 | Q141: 0.8129321422 | R141: 0.7965836827 | S141: 0.7842037374 | T141: 0.8422555238 | U141: 0.3674084873 | V141: 0.7578953561
C142: =C141+Sheet2!B$12 -> 1.149253731 | D142: 0.8606102169 | E142: 0.3521345865 | F142: 0.7852714043 | N142: 0.4626902932 | O142: 1.075103126 | P142: 0.8394470628 | Q142: 0.8111834194 | R142: 0.7956759093 | S142: 0.784036469 | T142: 0.8394470628 | U142: 0.3434752906 | V142: 0.7659608971
C143: =C142+Sheet2!B$12 -> 1.179104478 | D143: 0.8755036149 | E143: 0.3342258486 | F143: 0.809196924 | N143: 0.4589651748 | O143: 1.082733925 | P143: 0.8364736754 | Q143: 0.8094518652 | R143: 0.7948648474 | S143: 0.7840138363 | T143: 0.8364736754 | U143: 0.3193260647 | V143: 0.7731229359
C144: =C143+Sheet2!B$12 -> 1.208955224 | D144: 0.8903898413 | E144: 0.3151950812 | F144: 0.8327341294 | N144: 0.4552400565 | O144: 1.09046401 | P144: 0.8333323846 | Q144: 0.807742297 | R144: 0.7941546186 | S144: 0.7841378525 | T144: 0.8333323846 | U144: 0.2949969288 | V144: 0.7793713333
C145: =C144+Sheet2!B$12 -> 1.23880597 | D145: 0.9050569142 | E145: 0.2949809888 | F145: 0.855636742 | N145: 0.4515149381 | O145: 1.098293383 | P145: 0.8300202133 | Q145: 0.8060596539 | R145: 0.7935492537 | S145: 0.7844103032 | T145: 0.8300202133 | U145: 0.270524626 | V145: 0.784697382
C146: =C145+Sheet2!B$12 -> 1.268656716 | D146: 0.9192959724 | E146: 0.2735489974 | F146: 0.8776537078 | N146: 0.4477898198 | O146: 1.106222042 | P146: 0.8265341845 | Q146: 0.8044089962 | R146: 0.7930526871 | S146: 0.7848327444 | T146: 0.8265341845 | U146: 0.2459464681 | V146: 0.789093843
C147: =C146+Sheet2!B$12 -> 1.298507463 | D147: 0.9329042496 | E147: 0.2508921686 | F147: 0.898534061 | N147: 0.4440647014 | O147: 1.114249988 | P147: 0.8228713211 | Q147: 0.8027955061 | R147: 0.7926687517 | S147: 0.7854065007 | T147: 0.8228713211 | U147: 0.2213002784 | V147: 0.792554981
C148: =C147+Sheet2!B$12 -> 1.328358209 | D148: 0.9456879621 | E148: 0.2270314547 | F148: 0.9180318296 | N148: 0.440339583 | O148: 1.12237722 | P148: 0.8190286461 | Q148: 0.8012244871 | R148: 0.7924011733 | S148: 0.786132663 | T148: 0.8190286461 | U148: 0.1966243332 | V148: 0.7950765968
C149: =C148+Sheet2!B$12 -> 1.358208955 | D149: 0.9574650679 | E149: 0.2020152949 | F149: 0.9359108809 | N149: 0.4366144647 | O149: 1.130603739 | P149: 0.8150031824 | Q149: 0.7997013644 | R149: 0.7922535652 | S149: 0.7870120875 | T149: 0.8150031824 | U149: 0.1719573003 | V149: 0.7966560576
C150: =C149+Sheet2!B$12 -> 1.388059701 | D150: 0.9680678595 | E150: 0.1759185608 | F150: 0.9519495998 | N150: 0.4328893463 | O150: 1.138929545 | P150: 0.810791953 | Q150: 0.7982316847 | R150: 0.7922294232 | S150: 0.7880453945 | T150: 0.810791953 | U150: 0.1473381768 | V150: 0.7972923257
C151: =C150+Sheet2!B$12 -> 1.417910448 | D151: 0.9773453515 | E151: 0.1488408813 | F151: 0.9659453028 | N151: 0.429164228 | O151: 1.147354638 | P151: 0.8063919807 | Q151: 0.7968211161 | R151: 0.7923321195 | S151: 0.7892329665 | T151: 0.8063919807 | U151: 0.122806225 | V151: 0.7969859834
C152: =C151+Sheet2!B$12 -> 1.447761194 | D152: 0.9851654311 | E152: 0.1209043855 | F152: 0.9777182908 | N152: 0.4254391096 | O152: 1.155879017 | P152: 0.8018002887 | Q152: 0.7954754486 | R152: 0.7925648982 | S152: 0.7905749484 | T152: 0.8018002887 | U152: 0.09840090618 | V152: 0.7957392567
C153: =C152+Sheet2!B$12 -> 1.47761194 | D153: 0.9914167393 | E153: 0.09225091772 | F153: 0.9871154538 | N153: 0.4217139913 | O153: 1.164502684 | P153: 0.7970138998 | Q153: 0.7942005935 | R153: 0.7929308692 | S153: 0.792071246 | T153: 0.7970138998 | U153: 0.07416181387 | V153: 0.7935560357
C154: =C153+Sheet2!B$12 -> 1.507462687 | D154: 0.9960102566 | E154: 0.06303879252 | F154: 0.994013351 | N154: 0.4179888729 | O154: 1.173225636 | P154: 0.7920298369 | Q154: 0.7930025837 | R154: 0.7934330032 | S154: 0.793721526 | T154: 0.7920298369 | U154: 0.05012860483 | V154: 0.7904418926
C155: =C154+Sheet2!B$12 -> 1.537313433 | D155: 0.9988805706 | E155: 0.03343916328 | F155: 0.9983206984 | N155: 0.4142637545 | O155: 1.182047876 | P155: 0.7868451231 | Q155: 0.7918875735 | R155: 0.7940741262 | S155: 0.7955252156 | T155: 0.7868451231 | U155: 0.02634092936 | V155: 0.7864040967
C156: =C155+Sheet2!B$12 -> 1.567164179 | D156: 0.9999868077 | E156: 0.003632091788 | F156: 0.9999802116 | N156: 0.4105386362 | O156: 1.190969402 | P156: 0.7814567813 | Q156: 0.7908618391 | R156: 0.7948569142 | S156: 0.7974815024 | T156: 0.7814567813 | U156: 0.002838360202 | V156: 0.7814516266
C157: =C156+Sheet2!B$12 -> 1.597014925 | D157: 0.9993132149 | E157: -0.02619759036 | F157: 0.9989697632 | N157: 0.4068135178 | O157: 1.199990215 | P157: 0.7758618344 | Q157: 0.789931778 | R157: 0.7957838876 | S157: 0.7995893351 | T157: 0.7758618344 | U157: -0.0203396795 | V157: 0.7755951802
C158: =C157+Sheet2!B$12 -> 1.626865672 | D158: 0.9968693842 | E158: -0.05586453165 | F158: 0.99530283 | N158: 0.4030883995 | O158: 1.209110315 | P158: 0.7700573054 | Q158: 0.7891039092 | R158: 0.7968574061 | S158: 0.8018474232 | T158: 0.7700573054 | U158: -0.04315398926 | V158: 0.7688471804
C159: =C158+Sheet2!B$12 -> 1.656716418 | D159: 0.9926901162 | E159: -0.08518712261 | F159: 0.9890282205 | N159: 0.3993632811 | O159: 1.218329701 | P159: 0.7640402172 | Q159: 0.7883848735 | R159: 0.7980796633 | S159: 0.8042542382 | T159: 0.7640402172 | U159: -0.06556566506 | V159: 0.7612217791
C160: =C159+Sheet2!B$12 -> 1.686567164 | D160: 0.9868349241 | E160: -0.1139916706 | F160: 0.9802290888 | N160: 0.3956381628 | O160: 1.227648374 | P160: 0.7578075928 | Q160: 0.787781433 | R160: 0.7994526811 | S160: 0.8068080141 | T160: 0.7578075928 | U160: -0.08753617383 | V160: 0.7527348576
C161: =C160+Sheet2!B$12 -> 1.71641791 | D161: 0.9793871869 | E161: -0.1421163894 | F161: 0.9690212555 | N161: 0.3919130444 | O161: 1.237066334 | P161: 0.7513564551 | Q161: 0.7873004715 | R161: 0.8009783045 | S161: 0.8095067487 | T161: 0.7513564551 | U161: -0.1090274286 | V161: 0.7434040237
C162: =C161+Sheet2!B$12 -> 1.746268657 | D162: 0.9704529612 | E162: -0.1694151119 | F162: 0.9555508724 | N162: 0.388187926 | O162: 1.24658358 | P162: 0.7446838271 | Q162: 0.7869489943 | R162: 0.8026581961 | S162: 0.8123482049 | T162: 0.7446838271 | U162: -0.130001864 | V162: 0.7332486056
C163: =C162+Sheet2!B$12 -> 1.776119403 | D163: 0.9601594718 | E163: -0.1957606358 | F163: 0.9399914812 | N163: 0.3844628077 | O163: 1.256200113 | P163: 0.7377867317 | Q163: 0.7867341283 | R163: 0.8044938309 | S163: 0.8153299119 | T163: 0.7377867317 | U163: -0.150422512 | V163: 0.7222896437
C164: =C163+Sheet2!B$12 -> 1.805970149 | D164: 0.9486532994 | E164: -0.2210476281 | F164: 0.9225405296 | N164: 0.3807376893 | O164: 1.265915933 | P164: 0.7306621919 | Q164: 0.7866631218 | R164: 0.8064864908 | S164: 0.8184491672 | T164: 0.7306621919 | U164: -0.1702530783 | V164: 0.7105498773
C165: =C164+Sheet2!B$12 -> 1.835820896 | D165: 0.9360982936 | E165: -0.2451950148 | F165: 0.9034154194 | N165: 0.377012571 | O165: 1.27573104 | P165: 0.7233072307 | Q165: 0.7867433448 | R165: 0.8086372592 | S165: 0.8217030385 | T165: 0.7233072307 | U165: -0.1894580178 | V165: 0.6980537297
C166: =C165+Sheet2!B$12 -> 1.865671642 | D166: 0.9226732394 | E166: -0.2681478034 | F166: 0.882849173 | N166: 0.3732874526 | O166: 1.285645433 | P166: 0.715718871 | Q166: 0.7869822889 | R166: 0.8109470156 | S166: 0.8250883657 | T166: 0.715718871 | U166: -0.2080026112 | V166: 0.6848272892
C167: =C166+Sheet2!B$12 -> 1.895522388 | D167: 0.9085693114 | E167: -0.2898782898 | F167: 0.8610858092 | N167: 0.3695623343 | O167: 1.295659113 | P167: 0.7078941357 | Q167: 0.7873875671 | R167: 0.8134164305 | S167: 0.8286017634 | T167: 0.7078941357 | U167: -0.2258530404 | V167: 0.6708982869
C168: =C167+Sheet2!B$12 -> 1.925373134 | D168: 0.8939873517 | E168: -0.3103866237 | F168: 0.8383755297 | N168: 0.3658372159 | O168: 1.30577208 | P168: 0.6998300477 | Q168: 0.7879669139 | R168: 0.8160459595 | S168: 0.8322396235 | T168: 0.6998300477 | U168: -0.2429764641 | V168: 0.6562960716
C169: =C168+Sheet2!B$12 -> 1.955223881 | D169: 0.8791350094 | E169: =D169*COS(C169) -> -0.3297007129 | F169: =D169*SIN(C169) -> 0.8149698183 | N169: 0.3621120975 | O169: 1.315984333 | P169: 0.6915236302 | Q169: 0.7887281856 | R169: 0.8188358385 | S169: 0.8359981177 | T169: 0.6915236302 | U169: -0.2593410926 | V169: 0.6410515804
C170: =C169+Sheet2!B$12 -> 1.985074627 | D170: 0.864223784 | E170: -0.3478754692 | F170: 0.791116557 | N170: 0.3583869792 | O170: 1.326295873 | P170: 0.6829719059 | Q170: 0.7896793599 | R170: 0.8217860778 | S170: 0.8398732011 | T170: 0.6829719059 | U170: -0.274916262 | V170: 0.6251973074
C171: =C170+Sheet2!B$12 -> 2.014925373 | D171: 0.8494660134 | E171: -0.3649914085 | F171: 0.7670552651 | N171: 0.3546618608 | O171: 1.3367067 | P171: 0.6741718978 | Q171: 0.7908285361 | R171: 0.8248964572 | S171: 0.8438606147 | T171: 0.6741718978 | U171: -0.289672508 | V171: 0.6087672675
C172: =C171+Sheet2!B$12 -> 2.044776119 | D172: 0.8350718505 | E172: -0.381152635 | F172: 0.74301256 | N172: 0.3509367425 | O172: 1.347216814 | P172: 0.665120629 | Q172: 0.7921839348 | R172: 0.8281665203 | S172: 0.8479558894 | T172: 0.665120629 | U172: -0.3035816381 | V172: 0.5917969585
C173: =C172+Sheet2!B$12 -> 2.074626866 | D173: 0.82124627 | E173: -0.3964842531 | F173: 0.7191979374 | N173: 0.3472116241 | O173: 1.357826214 | P173: 0.6558151223 | Q173: 0.7937538986 | R173: 0.8315955691 | S173: 0.8521543495 | T173: 0.6558151223 | U173: -0.3166168035 | V173: 0.5743233187
C174: =C173+Sheet2!B$12 -> 2.104477612 | D174: 0.8081861503 | E174: -0.4111292629 | F174: 0.6957999589 | N174: 0.3434865058 | O174: 1.368534901 | P174: 0.6462524007 | Q174: 0.7955468914 | R174: 0.8351826589 | S174: 0.8564511163 | T174: 0.6462524007 | U174: -0.328752569 | V174: 0.5563846814
C175: =C174+Sheet2!B$12 -> 2.134328358 | D175: 0.7960774694 | E175: -0.4252450086 | F175: 0.6729829269 | N175: 0.3397613874 | O175: 1.379342875 | P175: 0.6364294871 | Q175: 0.7975714985 | R175: 0.8389265927 | S175: 0.8608411127 | T175: 0.6364294871 | U175: -0.3399649822 | V175: 0.5380207272
C176: =C175+Sheet2!B$12 -> 2.164179104 | D176: 0.7850926565 | E176: -0.4389992573 | F176: 0.6508841152 | N176: 0.336036269 | O176: 1.390250135 | P176: 0.6263434046 | Q176: 0.799836427 | R176: 0.8428259158 | S176: 0.8653190671 | T176: 0.6263434046 | U176: -0.350231641 | V176: 0.5192724315
C177: =C176+Sheet2!B$12 -> 2.194029851 | D177: 0.7753881369 | E177: -0.4525659972 | F177: 0.6296116113 | N177: 0.3323111507 | O177: 1.401256682 | P177: 0.615991176 | Q177: 0.8023505055 | R177: 0.8468789106 | S177: 0.869879518 | T177: 0.615991176 | U177: -0.3595317591 | V177: 0.5001820099
C178: =C177+Sheet2!B$12 -> 2.223880597 | D178: 0.7671021045 | E178: -0.466121049 | F178: 0.609242814 | N178: 0.3285860323 | O178: 1.412362516 | P178: 0.6053698242 | Q178: 0.8051226841 | R178: 0.8510835911 | S178: 0.874516819 | T178: 0.6053698242 | U178: -0.3678462304 | V178: 0.4807928607
C179: =C178+Sheet2!B$12 -> 2.253731343 | D179: 0.7603525534 | E179: -0.4798375877 | F179: 0.5898236134 | N179: 0.324860914 | O179: 1.423567637 | P179: 0.5944763724 | Q179: 0.8081620345 | R179: 0.8554376975 | S179: 0.8792251432 | T179: 0.5944763724 | U179: -0.3751576912 | V179: 0.4611495029
C180: =C179+Sheet2!B$12 -> 2.28358209 | D180: 0.7552355983 | E180: -0.4938816788 | F180: 0.5713682668 | N180: 0.3211357956 | O180: 1.434872044 | P180: 0.5833078433 | Q180: 0.8114777498 | R180: 0.8599386908 | S180: 0.8839984889 | T180: 0.5833078433 | U180: -0.3814505799 | V180: 0.4412975132
C181: =C180+Sheet2!B$12 -> 2.313432836 | D181: 0.7518241053 | E181: -0.508407928 | F181: 0.5538599679 | N181: 0.3174106773 | O181: 1.446275738 | P181: 0.57186126 | Q181: 0.8150791449 | R181: 0.8645837477 | S181: 0.8888306848 | T181: 0.57186126 | U181: -0.3867111952 | V181: 0.4212834583
C182: =C181+Sheet2!B$12 -> 2.343283582 | D182: 0.7501666545 | E182: -0.5235553442 | F182: 0.5372520926 | N182: 0.3136855589 | O182: 1.457778718 | P182: 0.5601336454 | Q182: 0.8189756561 | R182: 0.8693697548 | S182: 0.8937153957 | T182: 0.5601336454 | U182: -0.3909277516 | V182: 0.4011548252
C183: =C182+Sheet2!B$12 -> 2.373134328 | D183: 0.7502868483 | E183: -0.5394435117 | F183: 0.5214700878 | N183: 0.3099604405 | O183: 1.469380986 | P183: 0.5481220225 | Q183: 0.8231768412 | R183: 0.8742933035 | S183: 0.8986461278 | T183: 0.5481220225 | U183: -0.3940904326 | V183: 0.3809599486
C184: =C183+Sheet2!B$12 -> 2.402985075 | D184: 0.7521829752 | E184: -0.556169158 | F184: 0.506413957 | N184: 0.3062353222 | O184: 1.48108254 | P184: 0.5358234142 | Q184: 0.8276923798 | R184: 0.8793506846 | S184: 0.9036162356 | T184: 0.5358234142 | U184: -0.3961914413 | V184: 0.3607479355
C185: =C184+Sheet2!B$12 -> 2.432835821 | D185: 0.7558280339 | E185: -0.5738031992 | F185: 0.4919612846 | N185: 0.3025102038 | O185: 1.492883381 | P185: 0.5232348434 | Q185: 0.8325320726 | R185: 0.8845378828 | S185: 0.9086189274 | T185: 0.5232348434 | U185: -0.397225048 | V185: 0.3405685872
C186: =C185+Sheet2!B$12 -> 2.462686567 | D186: 0.7611701184 | E186: -0.5923883314 | F186: 0.477970725 | N186: 0.2987850855 | O186: 1.504783508 | P186: 0.5103533331 | Q186: 0.8377058423 | R186: 0.8898505714 | S186: 0.9136472722 | T186: 0.5103533331 | U186: -0.3971876354 | V186: 0.3204723185
C187: =C186+Sheet2!B$12 -> 2.492537313 | D187: 0.7681331566 | E187: -0.6119372263 | F187: 0.4642858789 | N187: 0.2950599671 | O187: 1.516782922 | P187: 0.4971759063 | Q187: 0.843223733 | R187: 0.895284107 | S187: 0.918694206 | T187: 0.4971759063 | U187: -0.3960777405 | V187: 0.3005100752
C188: =C187+Sheet2!B$12 -> 2.52238806 | D188: 0.7766179939 | E188: -0.6324313752 | F188: 0.4507394636 | N188: 0.2913348488 | O188: 1.528881623 | P188: 0.4836995859 | Q188: 0.8490959102 | R188: 0.9008335238 | S188: 0.9237525391 | T188: 0.4836995859 | U188: -0.393896094 | V188: 0.280733248
C189: =C188+Sheet2!B$12 -> 2.552238806 | D189: 0.7865038049 | E189: -0.6538206127 | F189: 0.437157685 | N189: 0.2876097304 | O189: 1.541079611 | P189: 0.4699213949 | Q189: 0.8553326612 | R189: 0.9064935288 | S189: 0.928814963 | T189: 0.4699213949 | U189: -0.3906456554 | V189: 0.2611935859
C190: =C189+Sheet2!B$12 -> 2.582089552 | D190: 0.7976498143 | E190: -0.6760233348 | F190: 0.4233647093 | N190: 0.283884612 | O190: 1.553376885 | P190: 0.4558383562 | Q190: 0.8619443946 | R190: 0.9122584958 | S190: 0.9338740577 | T190: 0.4558383562 | U190: -0.386331646 | V190: 0.2419431055
C191: =C190+Sheet2!B$12 -> 2.611940299 | D191: 0.8098973014 | E191: -0.6989274121 | F191: 0.409187135 | N191: 0.2801594937 | O191: 1.565773446 | P191: 0.4414474927 | Q191: 0.8689416408 | R191: 0.9181224605 | S191: 0.9389222993 | T191: 0.4414474927 | U191: -0.3809615777 | V191: 0.2230340001
C192: =C191+Sheet2!B$12 -> 2.641791045 | D192: 0.8230718601 | E192: -0.7223917829 | F192: 0.3944583614 | N192: 0.2764343753 | O192: 1.578269294 | P192: 0.4267458275 | Q192: 0.8763350515 | R192: 0.9240791147 | S192: 0.9439520679 | T192: 0.4267458275 | U192: -0.3745452786 | V192: 0.2045185457
C193: =C192+Sheet2!B$12 -> 2.671641791 | D193: 0.8369858829 | E193: -0.746248696 | F193: 0.3790227591 | N193: 0.272709257 | O193: 1.590864428 | P193: 0.4117303834 | Q193: 0.8841354003 | R193: 0.9301218013 | S193: 0.9489556551 | T193: 0.4117303834 | U193: -0.3670949152 | V193: 0.186449006
C194: =C193+Sheet2!B$12 -> 2.701492537 | D194: 0.8514412322 | E194: -0.7703065587 | F194: 0.362739545 | N194: 0.2689841386 | O194: 1.603558849 | P194: 0.3963981835 | Q194: 0.8923535819 | R194: 0.9362435089 | S194: 0.9539252727 | T194: 0.3963981835 | U194: -0.3586250102 | V194: 0.1688775353
C195: =C194+Sheet2!B$12 -> 2.731343284 | D195: =(SIN(Q))^2+(COS(Q))^4 -> 0.8662320617 | E195: -0.7943533319 | F195: 0.3454862786 | N195: =$L$1*(Q-$K$2)/($K$1-$K$2)+$L$2*(Q-$K$1)/($K$2-$K$1) -> 0.2652590203 | O195: =$L$1*(Q-$K$2)*(Q-$K$3)/($K$1-$K$2)/($K$1-$K$3)+$L$2*(Q-$K$1)*(Q-$K$3)/($K$2-$K$1)/($K$2-$K$3)+$L$3*(Q-$K$1)*(Q-$K$2)/($K$3-$K$1)/($K$3-$K$2) -> 1.616352557 | P195: =$L$1*(Q-$K$2)*(Q-$K$3)*(Q-$K$4)/($K$1-$K$2)/($K$1-$K$3)/($K$1-$K$4)+$L$2*(Q-$K$1)*(Q-$K$3)*(Q-$K$4)/($K$2-$K$1)/($K$2-$K$3) /($K$2-$K$4)+$L$3*(Q-$K$1)*(Q-$K$2)*(Q-$K$4)/($K$3-$K$1)/($K$3-$K$2) /($K$3-$K$4)+$L$4*(Q-$K$1)*(Q-$K$2)*(Q-$K$3)/($K$4-$K$1)/($K$4-$K$2) /($K$4-$K$3) -> 0.3807462506 | Q195: =$L$1*(Q-$K$2)*(Q-$K$3)*(Q-$K$4)*(Q-$K$5)/($K$1-$K$2)/($K$1-$K$3)/($K$1-$K$4)/($K$1-$K$5) +$L$2*(Q-$K$1)*(Q-$K$3)*(Q-$K$4)*(Q-$K$5)/($K$2-$K$1)/($K$2-$K$3)/($K$2-$K$4)/($K$2-$K$5) +$L$3*(Q-$K$1)*(Q-$K$2)*(Q-$K$4)*(Q-$K$5)/($K$3-$K$1)/($K$3-$K$2)/($K$3-$K$4)/($K$3-$K$5) +$L$4*(Q-$K$1)*(Q-$K$2)*(Q-$K$3)*(Q-$K$5)/($K$4-$K$1)/($K$4-$K$2)/($K$4-$K$3)/($K$4-$K$5)+$L$5*(Q-$K$1)*(Q-$K$2)*(Q-$K$3)*(Q-$K$4)/($K$5-$K$1)/($K$5-$K$2)/($K$5-$K$3)/($K$5-$K$4) -> 0.9010006128 | R195: =$L$1*(Q-$K$2)*(Q-$K$3)*(Q-$K$4)*(Q-$K$5)*(Q-$K$6)/($K$1-$K$2)/($K$1-$K$3)/($K$1-$K$4)/($K$1-$K$5)/($K$1-$K$6)+$L$2*(Q-$K$1)*(Q-$K$3)*(Q-$K$4)*(Q-$K$5)*(Q-$K$6)/($K$2-$K$1)/($K$2-$K$3)/($K$2-$K$4)/($K$2-$K$5)/($K$2-$K$6)+$L$3*(Q-$K$1)*(Q-$K$2)*(Q-$K$4)*(Q-$K$5)*(Q-$K$6)/($K$3-$K$1)/($K$3-$K$2)/($K$3-$K$4)/($K$3-$K$5)/($K$3-$K$6)+$L$4*(Q-$K$1)*(Q-$K$2)*(Q-$K$3)*(Q-$K$5)*(Q-$K$6)/($K$4-$K$1)/($K$4-$K$2)/($K$4-$K$3)/($K$4-$K$5)/($K$4-$K$6)+$L$5*(Q-$K$1)*(Q-$K$2)*(Q-$K$3)*(Q-$K$4)*(Q-$K$6)/($K$5-$K$1)/($K$5-$K$2)/($K$5-$K$3)/($K$5-$K$4)/($K$5-$K$6)+$L$6*(Q-$K$1)*(Q-$K$2)*(Q-$K$3)*(Q-$K$4)*(Q-$K$5)/($K$6-$K$1)/($K$6-$K$2)/($K$6-$K$3)/($K$6-$K$4)/($K$6-$K$5) -> 0.9424368659 | S195: =$L$1*(Q-$K$2)*(Q-$K$3)*(Q-$K$4)*(Q-$K$5)*(Q-$K$6)*(Q-$K$7)/($K$1-$K$2)/($K$1-$K$3)/($K$1-$K$4)/($K$1-$K$5)/($K$1-$K$6) /($K$1-$K$7)+$L$2*(Q-$K$1)*(Q-$K$3)*(Q-$K$4)*(Q-$K$5)*(Q-$K$6)*(Q-$K$7)/($K$2-$K$1)/($K$2-$K$3)/($K$2-$K$4)/($K$2-$K$5)/($K$2-$K$6) /($K$2-$K$7)+$L$3*(Q-$K$1)*(Q-$K$2)*(Q-$K$4)*(Q-$K$5)*(Q-$K$6)*(Q-$K$7)/($K$3-$K$1)/($K$3-$K$2)/($K$3-$K$4)/($K$3-$K$5)/($K$3-$K$6) /($K$3-$K$7)+$L$4*(Q-$K$1)*(Q-$K$2)*(Q-$K$3)*(Q-$K$5)*(Q-$K$6)*(Q-$K$7)/($K$4-$K$1)/($K$4-$K$2)/($K$4-$K$3)/($K$4-$K$5)/($K$4-$K$6) /($K$4-$K$7)+$L$5*(Q-$K$1)*(Q-$K$2)*(Q-$K$3)*(Q-$K$4)*(Q-$K$6)*(Q-$K$7)/($K$5-$K$1)/($K$5-$K$2)/($K$5-$K$3)/($K$5-$K$4)/($K$5-$K$6) /($K$5-$K$7)+$L$6*(Q-$K$1)*(Q-$K$2)*(Q-$K$3)*(Q-$K$4)*(Q-$K$5)*(Q-$K$7)/($K$6-$K$1)/($K$6-$K$2)/($K$6-$K$3)/($K$6-$K$4)/($K$6-$K$5) /($K$6-$K$7)+$L$7*(Q-$K$1)*(Q-$K$2)*(Q-$K$3)*(Q-$K$4)*(Q-$K$5)*(Q-$K$6)/($K$7-$K$1)/($K$7-$K$2)/($K$7-$K$3)/($K$7-$K$4)/($K$7-$K$5) /($K$7-$K$6) -> 0.9588530611 | T195: =IF(n=1,N195,IF(n=2,O195,IF(n=3,P195,IF(n=4,Q195,IF(n=5,R195,S195))))) -> 0.3807462506 | U195: -0.3491524571 | V195: 0.15185608
C196: =C195+Sheet2!B$12 -> 2.76119403 | D196: 0.8811477478 | E196: -0.8181604027 | F196: 0.3271619004 | N196: 0.2615339019 | O196: 1.629245552 | P196: 0.3647716077 | Q196: 0.9100876312 | R196: 0.9486941358 | S196: 0.9637310974 | T196: 0.3647716077 | U196: =T196*COS($C196) -> -0.338696531 | V196: =T196*SIN($C196) -> 0.1354362792
C197: =C196+Sheet2!B$12 -> 2.791044776 | D197: 0.8959758892 | E197: -0.841486852 | F197: 0.3076892458 | N197: 0.2578087835 | O197: 1.642237833 | P197: 0.3484712778 | Q197: 0.9196258965 | R197: 0.9550072115 | S197: 0.9685514047 | T197: 0.3484712778 | U197: -0.3272788946 | V197: 0.1196693638
C198: =C197+Sheet2!B$12 -> 2.820895522 | D198: 0.9105053309 | E198: -0.86408403 | F198: 0.28701698 | N198: 0.2540836652 | O198: 1.655329401 | P198: 0.3318422839 | Q198: 0.92962679 | R198: 0.96136761 | S198: 0.973305961 | T198: 0.3318422839 | U198: -0.3149236015 | V198: 0.1046060544
C199: =C198+Sheet2!B$12 -> 2.850746269 | D199: 0.9245291717 | E199: -0.8857003394 | F199: 0.2651209121 | N199: 0.2503585468 | O199: 1.668520256 | P199: 0.3148816488 | Q199: 0.9401018143 | R199: 0.9677664667 | S199: 0.9779867086 | T199: 0.3148816488 | U199: -0.3016570939 | V199: 0.09029645844
C200: =C199+Sheet2!B$12 -> 2.880597015 | D200: 0.93784771 | E200: -0.9060861279 | F200: 0.2420046611 | N200: 0.2466334285 | O200: 1.681810397 | P200: 0.2975863955 | Q200: 0.9510625936 | R200: 0.9741945306 | S200: 0.9825855635 | T200: 0.2975863955 | U200: -0.2875081977 | V200: 0.07678996708
... 11 more rows

Sheet Sheet3
